Workbook

Sheet Donnees_de_jeu
B2: Années sur lesquelles se déroule la partie
B3: 2023 | C3: 2024 | D3: 2025 | E3: 2026 | F3: 2027 | G3: 2028 | H3: 2029 | I3: 2030
B5: Types de biens | E5: Année en cours
B6: Bien 1 | C6: Scooter G1 | E6: 2023
B7: Bien 2 | C7: Scooter G2
B8: Bien 3 | C8: Scooter G3
B10: Types de machines | E10: Entreprises concurrentes
B11: Machine 1 | C11: Classique | E11: Entreprise 1 | F11: E1
B12: Machine 2 | C12: Moderne | E12: Entreprise 2 | F12: E2
E13: Entreprise 3 | F13: E3
B14: Légende | E14: Entreprise 4 | F14: E4
B15: Données déterminées par le jeu | E15: Entreprise 5 | F15: E5
B16: Cellules non nécessaires | E16: Entreprise 6 | F16: E6
B17: =CONCATENATE("Décisions de l'année ",E6+1," qui doivent être inscrites pour pouvoir obtenir certaines informations") -> Décisions de l'année 2024 qui doivent être inscrites pour pouvoir obtenir certaines informations
B18: =CONCATENATE("Données de l'année ",E6-1," qui doivent être inscrites pour pouvoir obtenir certaines informations") -> Données de l'année 2022 qui doivent être inscrites pour pouvoir obtenir certaines informations

Sheet Données_comptables
B2: =CONCATENATE("Bilan comptable de la société au 31/12/",Donnees_de_jeu!E6) -> Bilan comptable de la société au 31/12/2023
B3: Actif | F3: Passif
C4: Brut | D4: Amortissements et dépréciations | E4: Net | G4: Net
B5: Immobilisations | C5: =SUM(C6:C8) -> 300000 | D5: =SUM(D6:D8) -> 120000 | E5: =SUM(E6:E8) -> 180000 | F5: Capitaux propres | G5: =SUM(G6:G9) -> 398220
B6: =CONCATENATE("Machine(s) ", Donnees_de_jeu!$C$11, "(s)") -> Machine(s) Classique(s) | C6: =E6+D6 -> 300000 | D6: 120000 | E6: 180000 | F6: Capital | G6: 300000
B7: =CONCATENATE("Machine(s) ", Donnees_de_jeu!$C$12,"(s)") -> Machine(s) Moderne(s) | F7: Réserves | G7: -16093
F8: Résultat après IS | G8: 114313
B10: Stocks & Créances | C10: =SUM(C11:C14) -> 59280 | D10: =SUM(D11:D14) -> 0 | E10: =SUM(E11:E14) -> 59280 | F10: Dettes | G10: =SUM(G11:G18) -> 50029
B11: =CONCATENATE("Stock de ", Donnees_de_jeu!$C$6) -> Stock de Scooter G1 | C11: =E11+D11 -> 59280 | E11: 59280 | F11: Emprunts | G11: 0
B12: =CONCATENATE("Stock de ", Donnees_de_jeu!$C$7) -> Stock de Scooter G2 | F12: Dettes fiscales | G12: 49102
B13: =CONCATENATE("Stock de ", Donnees_de_jeu!$C$8) -> Stock de Scooter G3 | F13: Dettes fournisseurs
B14: Créances clients | F14: Intérêts sur emprunts à payer
F15: Intérêts sur découvert à payer | G15: 927
B17: Disponibilités | C17: =SUM(C17:C18) -> 208969 | D17: =SUM(D17:D18) -> 0 | E17: =SUM(E17:E18) -> 208969 | F17: Disponibilités
B18: Banque | C18: =E18+D18 -> 208969 | E18: 208969 | F18: CBC
B19: Total | C19: =SUM(C5,C10,C17) -> 568249 | D19: =SUM(D5,D10,D17) -> 120000 | E19: =SUM(E5,E10,E17) -> 448249 | F19: Total | G19: =SUM(G5,G10) -> 448249
B23: =CONCATENATE("Compte de résultat du 01/01/",Donnees_de_jeu!E6," au 31/12/",Donnees_de_jeu!E6) -> Compte de résultat du 01/01/2023 au 31/12/2023
B24: Charges | F24: Produits
B25: Charges d’exploitation | D25: =SUM(D26:D51) -> 607388 | E25: =SUM(E26:E51) -> 607388 | F25: Produits d’exploitation | H25: =SUM(H26:H49) -> 741730 | I25: =SUM(I26:I49) -> 741730
B26: Achats de matières | C26: =Donnees_de_jeu!$C$6 -> Scooter G1 | D26: =SUM(E26:E28) -> 92760 | E26: 92760 | F26: Ventes | G26: =Donnees_de_jeu!$C$6 -> Scooter G1 | H26: =SUM(I26:I28) -> 705250 | I26: 705250
C27: =Donnees_de_jeu!$C$7 -> Scooter G2 | G27: =Donnees_de_jeu!$C$7 -> Scooter G2
C28: =Donnees_de_jeu!$C$8 -> Scooter G3 | G28: =Donnees_de_jeu!$C$8 -> Scooter G3
B29: Frais fixes de production | C29: =Donnees_de_jeu!$C$6 -> Scooter G1 | D29: =SUM(E29:E31) -> 30000 | E29: 30000 | F29: Production stockée | G29: =Donnees_de_jeu!$C$6 -> Scooter G1 | H29: =SUM(I29:I31) -> 36480 | I29: 36480
C30: =Donnees_de_jeu!$C$7 -> Scooter G2 | G30: =Donnees_de_jeu!$C$7 -> Scooter G2
C31: =Donnees_de_jeu!$C$8 -> Scooter G3 | G31: =Donnees_de_jeu!$C$8 -> Scooter G3
B32: Frais fixes d’administration et distribution | C32: =Donnees_de_jeu!$C$6 -> Scooter G1 | D32: =SUM(E32:E34) -> 60000 | E32: 60000
C33: =Donnees_de_jeu!$C$7 -> Scooter G2
C34: =Donnees_de_jeu!$C$8 -> Scooter G3
B35: Budget communication | C35: =Donnees_de_jeu!$C$6 -> Scooter G1 | D35: =SUM(E35:E37) -> 40000 | E35: 40000
C36: =Donnees_de_jeu!$C$7 -> Scooter G2
C37: =Donnees_de_jeu!$C$8 -> Scooter G3
B38: Budget qualité | C38: =Donnees_de_jeu!$C$6 -> Scooter G1 | D38: =SUM(E38:E40) -> 30000 | E38: 30000
C39: =Donnees_de_jeu!$C$7 -> Scooter G2
C40: =Donnees_de_jeu!$C$8 -> Scooter G3
B41: Coût de stockage | C41: =Donnees_de_jeu!$C$6 -> Scooter G1 | D41: =SUM(E41:E43) -> 5928 | E41: 5928
C42: =Donnees_de_jeu!$C$7 -> Scooter G2
C43: =Donnees_de_jeu!$C$8 -> Scooter G3
B44: Dépréciation des stocks | C44: =Donnees_de_jeu!$C$6 -> Scooter G1 | D44: =SUM(E44:E46) -> 0 | E44: 0
C45: =Donnees_de_jeu!$C$7 -> Scooter G2
C46: =Donnees_de_jeu!$C$8 -> Scooter G3
B47: Charges salariales | D47: =E47 -> 188700 | E47: 188700
B48: Amortissements | C48: =CONCATENATE("Machine(s) ", Donnees_de_jeu!$C$11, "(s)") -> Machine(s) Classique(s) | D48: =SUM(E48:E49) -> 60000 | E48: 60000
C49: =CONCATENATE("Machine(s) ", Donnees_de_jeu!$C$12,"(s)") -> Machine(s) Moderne(s) | E49: 0
B50: Etudes (motivation d'achat & prévision ventes) | D50: =E50 -> 30000 | E50: 30000
B51: Budget R & D | D51: =E51 -> 70000 | E51: 70000
B52: Charges financières | D52: =SUM(D53:D55) -> 927 | E52: =SUM(E53:E55) -> 927 | F52: Produits financiers | H52: =SUM(H53:H55) -> 0 | I52: =SUM(I53:I55) -> 0
B53: Intérêts sur découverts | D53: =E53 -> 927 | E53: 927 | F53: Produits de placement | H53: =I53 -> 0
B54: Intérêts sur emprunts | D54: =E54 -> 0 | E54: 0
B55: Impôts et versements assimilés | D55: =E55 -> 0 | E55: 0
B56: Charges exceptionnelles | D56: =SUM(D57:D62) -> 0 | E56: =SUM(E57:E62) -> 0 | F56: Produits exceptionnels | H56: =SUM(H57:H62) -> 30000 | I56: =SUM(I57:I62) -> 30000
B57: VNC des éléments d'actifs cédés | C57: =CONCATENATE("Machine(s) ", Donnees_de_jeu!$C$11, "(s)") -> Machine(s) Classique(s) | D57: =SUM(E57:E58) -> 0 | E57: 0 | F57: Produits de cession des éléments d'actif cédés | G57: =CONCATENATE("Machine(s) ", Donnees_de_jeu!$C$11, "(s)") -> Machine(s) Classique(s) | H57: =SUM(I57:I58) -> 0
C58: =CONCATENATE("Machine(s) ", Donnees_de_jeu!$C$12,"(s)") -> Machine(s) Moderne(s) | E58: 0 | G58: =CONCATENATE("Machine(s) ", Donnees_de_jeu!$C$12,"(s)") -> Machine(s) Moderne(s)
B59: Autres charges exceptionnelles | C59: =Donnees_de_jeu!$C$6 -> Scooter G1 | D59: =SUM(E59:E61) -> 0 | E59: 0 | F59: Autres produits exceptionnels | G59: =Donnees_de_jeu!$C$6 -> Scooter G1 | H59: =SUM(I59:I61) -> 0
C60: =Donnees_de_jeu!$C$7 -> Scooter G2 | E60: 0 | G60: =Donnees_de_jeu!$C$7 -> Scooter G2
C61: =Donnees_de_jeu!$C$8 -> Scooter G3 | E61: 0 | G61: =Donnees_de_jeu!$C$8 -> Scooter G3
F62: Remboursement études | H62: =I62 -> 30000 | I62: 30000
B63: Impôts sur les bénéfices | D63: =E63 -> 49102 | E63: 49102
B64: Participation des salariés | D64: =E64 -> 0 | E64: 0
B65: Résultat net après IS (bénéfice) | D65: =IF(G8<0,0,G8) -> 114313 | F65: Résultat net après IS (perte) | H65: =IF(G8>0,0,-G8) -> 0
B66: Total | E66: =SUM(E25,E52,E56,E63,E64,D65) -> 771730 | F66: Total | I66: =SUM(I25,I52,I56,H65) -> 771730

Sheet Données_financières
B2: Trésorerie
B3: =CONCATENATE("Rappel de la trésorerie au 31/12/",Donnees_de_jeu!E6-1) -> Rappel de la trésorerie au 31/12/2022 | C3: 26200
B4: =CONCATENATE("Rappel de la trésorerie prévisionnelle au 01/01/",Donnees_de_jeu!E6) -> Rappel de la trésorerie prévisionnelle au 01/01/2023 | C4: 21107
B5: =CONCATENATE("Trésorerie au 01/01/",Donnees_de_jeu!E6) -> Trésorerie au 01/01/2023 | C5: -48893
B6: =CONCATENATE("Trésorerie au 31/12/",Donnees_de_jeu!E6) -> Trésorerie au 31/12/2023 | C6: 208969
B7: Découvert moyen | C7: 4635
B8: =CONCATENATE("Trésorerie prévisionnelle au 01/01/",Donnees_de_jeu!E6+1) -> Trésorerie prévisionnelle au 01/01/2024 | C8: 158940
B10: Tableau des emprunts en cours
B11: Années | C11: Montant emprunté au 01/01 | D11: Montant total restant dû au 01/01 | E11: Montant à rembourser au 31/12 | F11: Capital restant dû au 31/12 | G11: Intérêts sur emprunts à payer au 31/12
B12: =Donnees_de_jeu!E6 -> 2023
B13: =B12+1 -> 2024
B14: …
B15: N
B16: …
B17: N+Y
B19: =CONCATENATE("Dividendes versés cette année :"," ",Donnees_de_jeu!E6) -> Dividendes versés cette année : 2023 | C19: 0
B20: =CONCATENATE("Dividendes distribuables (max) pour l'année ",Donnees_de_jeu!E6+1," :") -> Dividendes distribuables (max) pour l'année 2024 : | C20: 98220
B21: Votre banque accepte de vous prêter (emprunt ou découvert) jusqu’à : | C21: 348191
B22: Sans l’accord du banquier, l’investissement cumulé maximum est de : | C22: 557160
B23: =CONCATENATE("Dividendes qui seront distribués en ",Donnees_de_jeu!E6+1) -> Dividendes qui seront distribués en 2024

Sheet Données_RH
B2: Salariés dans l'entreprise en début d'année | C2: Embauches | D2: Licenciements | E2: Salaire mensuel | F2: Salaire mensuel moyen du marché | G2: Salariés dans l'entreprise en fin d'année | H2: Nombre de salariés du secteur
B3: 62 | C3: 23 | D3: 0 | E3: 185 | F3: 185 | G3: =B3+C3-D3 -> 85 | H3: 255

Sheet Données_techniques
B2: Recherche et développement
B3: Effort cumulé de R&D : | C3: 140000
B4: Budget annuel maximum en R&D sans l’accord de l’animateur : | C4: -1
B6: Appareil productif
B7: Type de machine | C7: Age | D7: Rendement théorique | E7: Capacité de production | F7: Valeur nette comptable
B8: =Donnees_de_jeu!C11 -> Classique | C8: 2 | D8: 30 | E8: 3000 | F8: 180000
B13: État des stocks
B14: Produit | C14: Stock au 01/01/N | D14: Quantité produite | E14: Ventes | F14: Stock au 31/12/N | G14: Valeur unitaire du stock
B15: =Donnees_de_jeu!$C$6 -> Scooter G1 | C15: 190 | D15: 2319 | E15: 2015 | F15: 494 | G15: 120
B16: =Donnees_de_jeu!$C$7 -> Scooter G2 | G16: 140
B17: =Donnees_de_jeu!$C$8 -> Scooter G3 | G17: 180

Sheet Données_commerciales
B2: Produit | C2: Prix de vente | D2: Prix moyen | E2: Budget publicitaire | F2: Budget publicitaire moyen | G2: Budget qualité et services | H2: Indice qualité | I2: Indice qualité moyen | J2: Volume des ventes | K2: =CONCATENATE("Rappel chiffre d'affaires ",Donnees_de_jeu!E6-1) -> Rappel chiffre d'affaires 2022
B3: =Donnees_de_jeu!$C$6 -> Scooter G1 | C3: 350 | D3: 350 | E3: =Données_comptables!E35 -> 40000 | F3: 40000 | G3: =Données_comptables!E38 -> 30000 | H3: 2 | I3: 2 | J3: 2015 | K3: 0
B4: =Donnees_de_jeu!$C$7 -> Scooter G2 | E4: =Données_comptables!E36 -> 0 | G4: =Données_comptables!E39 -> 0 | K4: 0
B5: =Donnees_de_jeu!$C$8 -> Scooter G3 | E5: =Données_comptables!E37 -> 0 | G5: =Données_comptables!E40 -> 0 | K5: 0
B8: Concurrence
C9: =Donnees_de_jeu!$C$6 -> Scooter G1 | E9: =Donnees_de_jeu!$C$7 -> Scooter G2 | G9: =Donnees_de_jeu!$C$8 -> Scooter G3 | I9: Résultat annuel
C10: Ventes | D10: Prix | E10: Ventes | F10: Prix | G10: Ventes | H10: Prix
B11: =Donnees_de_jeu!F11 -> E1
B12: =Donnees_de_jeu!F12 -> E2
B13: =Donnees_de_jeu!F13 -> E3
B14: =Donnees_de_jeu!F14 -> E4
B15: =Donnees_de_jeu!F15 -> E5
B16: =Donnees_de_jeu!F16 -> E6
B17: Total / moyenne
B18: Moyenne résultat

Sheet Charges_compta_analytique
B2: Détermination des charges en comptabilité analytique | J2: Méthode des coûts complets | L2: Méthode des coûts partiels
B3: Charges de la comptabilité générale | D3: =Donnees_de_jeu!E6 -> 2023 | F3: Charges soustraites | G3: Charges ajoutées | H3: Charges de la comptabilité analytique | I3: =Donnees_de_jeu!E6 -> 2023 | J3: Charges directes | K3: Charges indirectes | L3: Charges variables | M3: Charges fixes directes | N3: Charges fixes indirectes
B4: Charges d’exploitation | D4: =SUM(D5:D28) -> 507388 | E4: 507388 | F4: 0 | G4: 0 | H4: 507388 | I4: 507388 | J4: 258688 | K4: 248700 | L4: 98688 | M4: 160000 | N4: 248700
B5: Achats de matières | C5: =Données_comptables!$C$26 -> Scooter G1 | D5: =SUM(E5:E7) -> 92760 | E5: =Données_comptables!E26 -> 92760 | H5: =SUM(I5:I7) -> 92760 | I5: =E5-F5+G5 -> 92760 | J5: =I5 -> 92760 | L5: =I5 -> 92760
C6: =Données_comptables!$C$27 -> Scooter G2 | E6: =Données_comptables!E27 -> 0 | I6: =E6-F6+G6 -> 0 | J6: =I6 -> 0 | L6: =I6 -> 0
C7: =Données_comptables!$C$28 -> Scooter G3 | E7: =Données_comptables!E28 -> 0 | I7: 0 | J7: 0 | L7: 0
B8: Frais fixes de production | C8: =Données_comptables!$C$26 -> Scooter G1 | D8: =SUM(E8:E10) -> 30000 | E8: =Données_comptables!E29 -> 30000 | H8: =SUM(I8:I10) -> 30000 | I8: 30000 | J8: 30000 | M8: =I8 -> 30000
C9: =Données_comptables!$C$27 -> Scooter G2 | E9: =Données_comptables!E30 -> 0 | I9: 0 | J9: 0 | M9: =I9 -> 0
C10: =Données_comptables!$C$28 -> Scooter G3 | E10: =Données_comptables!E31 -> 0 | I10: 0 | J10: 0 | M10: 0
B11: Frais fixes d’administration et distribution | C11: =Données_comptables!$C$26 -> Scooter G1 | D11: =SUM(E11:E13) -> 60000 | E11: =Données_comptables!E32 -> 60000 | H11: =SUM(I11:I13) -> 60000 | I11: 60000 | J11: 60000 | M11: 60000
C12: =Données_comptables!$C$27 -> Scooter G2 | E12: =Données_comptables!E33 -> 0 | I12: 0 | J12: 0 | M12: 0
C13: =Données_comptables!$C$28 -> Scooter G3 | E13: =Données_comptables!E34 -> 0 | I13: 0 | J13: 0 | M13: 0
B14: Budget communication | C14: =Données_comptables!$C$26 -> Scooter G1 | D14: =SUM(E14:E16) -> 40000 | E14: =Données_comptables!E35 -> 40000 | H14: =SUM(I14:I16) -> 40000 | I14: 40000 | J14: 40000 | M14: 40000
C15: =Données_comptables!$C$27 -> Scooter G2 | E15: =Données_comptables!E36 -> 0 | I15: 0 | J15: 0 | M15: 0
C16: =Données_comptables!$C$28 -> Scooter G3 | E16: =Données_comptables!E37 -> 0 | I16: 0 | J16: 0 | M16: 0
B17: Budget qualité | C17: =Données_comptables!$C$26 -> Scooter G1 | D17: =SUM(E17:E19) -> 30000 | E17: =Données_comptables!E38 -> 30000 | H17: =SUM(I17:I19) -> 30000 | I17: 30000 | J17: 30000 | M17: 30000
C18: =Données_comptables!$C$27 -> Scooter G2 | E18: =Données_comptables!E39 -> 0 | I18: 0 | J18: 0 | M18: 0
C19: =Données_comptables!$C$28 -> Scooter G3 | E19: =Données_comptables!E40 -> 0 | I19: 0 | J19: 0 | M19: 0
B20: Coût de stockage | C20: =Données_comptables!$C$26 -> Scooter G1 | D20: =SUM(E20:E22) -> 5928 | E20: =Données_comptables!E41 -> 5928 | H20: =SUM(I20:I22) -> 5928 | I20: 5928 | J20: 5928 | L20: =I20 -> 5928
C21: =Données_comptables!$C$27 -> Scooter G2 | E21: =Données_comptables!E42 -> 0 | I21: 0 | J21: 0 | L21: 0
C22: =Données_comptables!$C$28 -> Scooter G3 | E22: =Données_comptables!E43 -> 0 | I22: 0 | J22: 0 | L22: 0
B23: Dépréciation des stocks | C23: =Données_comptables!$C$26 -> Scooter G1 | D23: =SUM(E23:E25) -> 0 | E23: =Données_comptables!E44 -> 0 | H23: =SUM(I23:I25) -> 0 | I23: 0 | J23: 0 | L23: 0
C24: =Données_comptables!$C$27 -> Scooter G2 | E24: =Données_comptables!E45 -> 0 | I24: 0 | J24: 0 | L24: 0
C25: =Données_comptables!$C$28 -> Scooter G3 | E25: =Données_comptables!E46 -> 0 | I25: 0 | J25: 0 | L25: 0
B26: Charges salariales | D26: =E26 -> 188700 | E26: =Données_comptables!E47 -> 188700 | H26: =I26 -> 188700 | I26: 188700 | K26: =I26 -> 188700 | N26: =I26 -> 188700
B27: Amortissements | C27: =CONCATENATE("Machine(s) ", Donnees_de_jeu!$C$11, "(s)") -> Machine(s) Classique(s) | D27: =SUM(E27:E28) -> 60000 | E27: =Données_comptables!E48 -> 60000 | H27: =SUM(I27:I28) -> 60000 | I27: 60000 | K27: =I27 -> 60000 | N27: =I27 -> 60000
C28: =CONCATENATE("Machine(s) ",Donnees_de_jeu!$C$12,"(s)") -> Machine(s) Moderne(s) | E28: =Données_comptables!E49 -> 0 | I28: 0 | K28: 0 | N28: 0
B29: =Données_comptables!B50 -> Etudes (motivation d'achat & prévision ventes) | D29: =E29 -> 30000 | E29: =Données_comptables!E50 -> 30000 | H29: =I29 -> 30000 | I29: 30000 | K29: 30000 | N29: 30000
B30: =Données_comptables!B51 -> Budget R & D | D30: =E30 -> 70000 | E30: =Données_comptables!E51 -> 70000 | H30: =I30 -> 70000 | I30: 70000 | K30: 70000 | N30: 70000
B31: Charges financières | D31: =SUM(D32:D41) -> 50029 | E31: 50029 | F31: 49102 | G31: 0 | H31: 927 | I31: 927 | J31: 0 | K31: 927 | L31: 0 | M31: 0 | N31: 927
B32: Intérêts sur découverts | D32: =E32 -> 927 | E32: =Données_comptables!E53 -> 927 | H32: =I32 -> 927 | I32: 927 | K32: =I32 -> 927 | N32: =I32 -> 927
B33: Intérêts sur emprunts | D33: =E33 -> 0 | E33: =Données_comptables!E54 -> 0 | H33: =I33 -> 0 | I33: =E33-F33+G33 -> 0 | K33: =I33 -> 0 | N33: =I33 -> 0
B34: Impôts et versements assimilés | D34: =E34 -> 0 | E34: =Données_comptables!E55 -> 0 | H34: =I34 -> 0 | I34: =E34-F34+G34 -> 0 | K34: =I34 -> 0 | N34: =I34 -> 0
B35: Charges exceptionnelles | D35: =SUM(D36:D38) -> 0 | E35: =SUM(E36:E38) -> 0 | F35: =SUM(F36:F38) -> 0 | G35: 0 | H35: =SUM(H36:H38) -> 0 | I35: =SUM(I36:I38) -> 0
B36: VNC des éléments d'actifs cédés | C36: =CONCATENATE("Machine(s) ", Donnees_de_jeu!$C$11, "(s)") -> Machine(s) Classique(s) | D36: =E36+E37 -> 0 | E36: =Données_comptables!E57 -> 0 | F36: =D36 -> 0 | H36: =I36+I37 -> 0 | I36: =E36-F36+G36 -> 0
C37: =CONCATENATE("Machine(s) ",Donnees_de_jeu!$C$12,"(s)") -> Machine(s) Moderne(s) | E37: =Données_comptables!E58 -> 0
B38: Autres charges exceptionnelles | C38: =Données_comptables!$C$26 -> Scooter G1 | D38: =E38+E39+E40 -> 0 | E38: =Données_comptables!E59 -> 0 | F38: =D38 -> 0 | H38: =I38+I39+I40 -> 0 | I38: 0
C39: =Données_comptables!$C$27 -> Scooter G2 | E39: =Données_comptables!E60 -> 0
C40: =Données_comptables!$C$28 -> Scooter G3 | E40: =Données_comptables!E61 -> 0
B41: Impôts sur les bénéfices | D41: =E41 -> 49102 | E41: =Données_comptables!E63 -> 49102 | F41: =E41 -> 49102 | H41: =I41 -> 0 | I41: =E41-F41+G41 -> 0
B42: Participation des salariés | D42: =E42 -> 0 | E42: =Données_comptables!E64 -> 0 | H42: =I42 -> 0 | I42: =E42-F42+G42 -> 0 | K42: =I42 -> 0 | N42: =I42 -> 0
B43: Dividendes versés | G43: =Données_financières!C23 -> 0 | H43: =I43 -> 0 | I43: =E43-F43+G43 -> 0 | K43: =I43 -> 0 | N43: =I43 -> 0
B44: Total | D44: =SUM(D4,D31,D35,D43) -> 557417 | E44: =SUM(E4,E31,E35,E43) -> 557417 | H44: =SUM(H4,H31,H35,H43) -> 508315 | I44: 508315 | J44: 258688 | K44: 249627 | L44: 98688 | M44: 160000 | N44: 249627
J45: Vérification | K45: =IF($I$44=J44+K44,"OK","Pas OK") -> OK | M45: Vérification | N45: =IF($I$44=L44+M44+N44,"OK","Pas OK") -> OK

Sheet Coûts_partiels
C2: =CONCATENATE("Compte de résultat différentiel du 01/01/",Donnees_de_jeu!E6," au 31/12/",Donnees_de_jeu!E6) -> Compte de résultat différentiel du 01/01/2023 au 31/12/2023 | I2: Données nécessaires à la détermination graphique du seuil de rentabilité
D3: =Donnees_de_jeu!$C$6 -> Scooter G1 | E3: =Donnees_de_jeu!$C$7 -> Scooter G2 | F3: =Donnees_de_jeu!$C$8 -> Scooter G3 | G3: Global | J3: =CONCATENATE("01/01/",Donnees_de_jeu!E6) -> 01/01/2023 | K3: =CONCATENATE("31/12/",Donnees_de_jeu!E6) -> 31/12/2023
B4: Rappel | C4: Quantités vendues | D4: =Données_commerciales!J3 -> 2015 | E4: =Données_commerciales!J4 -> 0 | F4: =Données_commerciales!J5 -> 0 | G4: =SUM(D4:F4) -> 2015 | I4: Axe abscisses | J4: 0 | K4: 0
C5: Prix | D5: =Données_commerciales!C3 -> 350 | E5: =Données_commerciales!C4 -> 0 | F5: =Données_commerciales!C5 -> 0 | I5: Chiffre d'affaires | J5: 0 | K5: =G6 -> 705250
C6: Chiffre d'affaires | D6: =Données_comptables!I26 -> 705250 | E6: =Données_comptables!I27 -> 0 | F6: =Données_comptables!I28 -> 0 | G6: =Données_comptables!H26 -> 705250 | I6: Coûts fixes | J6: =G14+G20 -> 509627 | K6: =J6 -> 509627
C7: Charges variables | D7: =SUM(D8:D11) -> 135168 | E7: =SUM(E8:E11) -> 0 | F7: =SUM(F8:F11) -> 0 | G7: =SUM(G8:G11) -> 135168 | I7: Coûts variables | J7: 0 | K7: =G7 -> 135168
C8: Achats de matières | D8: =Données_comptables!E26 -> 92760 | E8: =Données_comptables!E27 -> 0 | F8: =Données_comptables!E28 -> 0 | G8: =Données_comptables!D26 -> 92760 | I8: Total des coûts | J8: =J6+J7 -> 509627 | K8: =K6+K7 -> 644795
C9: Production stockée | D9: =Données_comptables!I29 -> 36480 | E9: =Données_comptables!I30 -> 0 | F9: =Données_comptables!I31 -> 0 | G9: =Données_comptables!H29 -> 36480 | I9: Marge sur coût variable | J9: =J5-J7 -> 0 | K9: =K5-K7 -> 570082
C10: Coût de stockage | D10: =Données_comptables!E41 -> 5928 | E10: =Données_comptables!E42 -> 0 | F10: =Données_comptables!E43 -> 0 | G10: =Données_comptables!D41 -> 5928 | I10: Résultat analytique | J10: =J5-J8 -> -509627 | K10: =K5-K8 -> 60455
C11: Dépréciation des stocks | D11: =Données_comptables!E44 -> 0 | E11: =Données_comptables!E45 -> 0 | F11: =Données_comptables!E46 -> 0 | G11: =Données_comptables!D44 -> 0
C12: Marge sur coût variable | D12: =D6-D7 -> 570082 | E12: =E6-E7 -> 0 | F12: =F6-F7 -> 0 | G12: =G6-G7 -> 570082
C13: McV unitaire / moyenne | D13: =D12/D4 -> 282.9191067 | E13: =E12/E4 ->  | F13: =F12/F4 ->  | G13: =G12/G4 -> 282.9191067
C14: Coûts fixes directs | D14: =SUM(D15:D18) -> 160000 | E14: =SUM(E15:E18) -> 0 | F14: =SUM(F15:F18) -> 0 | G14: =SUM(G15:G18) -> 160000
C15: Frais fixes de production | D15: =Données_comptables!E29 -> 30000 | E15: =Données_comptables!E30 -> 0 | F15: =Données_comptables!E31 -> 0 | G15: =Données_comptables!D29 -> 30000
C16: Frais fixes d'administration et distribution | D16: =Données_comptables!E32 -> 60000 | E16: =Données_comptables!E33 -> 0 | F16: =Données_comptables!E34 -> 0 | G16: =Données_comptables!D32 -> 60000
C17: Budget communication | D17: =Données_comptables!E35 -> 40000 | E17: =Données_comptables!E36 -> 0 | F17: =Données_comptables!E37 -> 0 | G17: =Données_comptables!D35 -> 40000
C18: Budget qualité | D18: =Données_comptables!E38 -> 30000 | E18: =Données_comptables!E39 -> 0 | F18: =Données_comptables!E40 -> 0 | G18: =Données_comptables!D38 -> 30000
C19: Marge sur coût spécifique | D19: =D12-D14 -> 410082 | E19: =E12-E14 -> 0 | F19: =F12-F14 -> 0 | G19: =G12-G14 -> 410082
C20: Coûts fixes indirects | D20: =SUM(D21:F26) -> 349627 | G20: =D20 -> 349627
C21: Charges salariales | D21: =Données_comptables!E47 -> 188700 | G21: =D21 -> 188700
C22: Amortissements | D22: =Données_comptables!D48 -> 60000 | G22: =D22 -> 60000
C23: Etudes (motivation d'achat & prévision ventes) | D23: =Charges_compta_analytique!K29 -> 30000 | G23: =D23 -> 30000
C24: Budget R & D | D24: =Charges_compta_analytique!I30 -> 70000 | G24: 70000
C25: Charges financières | D25: =Données_comptables!D53+Données_comptables!D54 -> 927 | G25: =D25 -> 927
C26: Rémunération des capitaux propres (=dividendes) | D26: =Charges_compta_analytique!H43 -> 0 | G26: =D26 -> 0
C27: Résultat analytique | D27: =SUM(D19:F19)-D20 -> 60455 | G27: =D27 -> 60455
C29: Taux de marge sur coût variable | D29: =D12/D6 -> 0.8083403049 | E29: =E12/E6 ->  | F29: =F12/F6 ->  | G29: =G12/G6 -> 0.8083403049
C30: Seuil de rentabilité (en €) | G30: =(G14+G20)/G29 -> 630460.9543
C31: Seuil de rentabilité en nombre de jours | G31: =G30/G6*360 -> 321.8233868
C32: Marge de sécurité globale | G32: =G6-G30 -> 74789.0457
C33: Indice de sécurité global | G33: =G32/G6 -> 0.1060461477

Sheet Coûts_complets
B2: 1) Tableau de répartition des charges indirectes | H2: 2) Coût d'approvisionnement
B3: Charges \ Centres d'analyse | D3: Montants en comptabilité analytique | E3: Production | F3: Administration | J3: =CONCATENATE("Matières pour le ",Donnees_de_jeu!C6) -> Matières pour le Scooter G1 | M3: =CONCATENATE("Matières pour le ",Donnees_de_jeu!C7) -> Matières pour le Scooter G2 | P3: =CONCATENATE("Matières pour le ",Donnees_de_jeu!C8) -> Matières pour le Scooter G3
B4: Charges salariales | D4: =Charges_compta_analytique!K26 -> 188700 | E4: =D4 -> 188700 | J4: Q | K4: prix / coût | L4: Montant | M4: Q | N4: prix / coût | O4: Montant | P4: Q | Q4: prix / coût | R4: Montant
B5: Amortissements | C5: =CONCATENATE("Machine(s) ", Donnees_de_jeu!$C$11, "(s)") -> Machine(s) Classique(s) | D5: =Charges_compta_analytique!K27 -> 60000 | E5: =D5 -> 60000 | H5: Charges directes
C6: =CONCATENATE("Machine(s) ",Donnees_de_jeu!$C$12,"(s)") -> Machine(s) Moderne(s) | D6: =Charges_compta_analytique!K28 -> 0 | E6: =D6 -> 0 | H6: Achat de matières | J6: =Données_techniques!D15 -> 2319 | K6: =L6/J6 -> 40 | L6: =Charges_compta_analytique!J5 -> 92760 | M6: =Données_techniques!D16 -> 0 | N6: =O6/M6 ->  | O6: =Charges_compta_analytique!J6 -> 0 | P6: =Données_techniques!C17 -> 0 | Q6: =R6/P6 ->  | R6: =Charges_compta_analytique!J7 -> 0
B7: Etudes (motivation d'achat & prévision ventes) | D7: =Charges_compta_analytique!K29 -> 30000 | F7: =D7 -> 30000 | H7: =Charges_compta_analytique!B20 -> Coût de stockage | L7: =Charges_compta_analytique!J20 -> 5928 | O7: =Charges_compta_analytique!J21 -> 0 | R7: =Charges_compta_analytique!J22 -> 0
B8: Budget R & D | D8: =Charges_compta_analytique!K30 -> 70000 | E8: =D8 -> 70000 | H8: =Charges_compta_analytique!B23 -> Dépréciation des stocks | L8: =Charges_compta_analytique!J23 -> 0 | O8: =Charges_compta_analytique!J24 -> 0 | R8: =Charges_compta_analytique!J25 -> 0
B9: Intérêts sur découverts | D9: =Charges_compta_analytique!K32 -> 927 | F9: =D9 -> 927 | H9: Charges indirectes
B10: Intérêts sur emprunts | D10: =Charges_compta_analytique!K33 -> 0 | F10: =D10 -> 0 | H10: Total | J10: =J6 -> 2319 | K10: =L10/J10 -> 42.55627426 | L10: =SUM(L5:L9) -> 98688 | M10: =M6 -> 0 | N10: =O10/M10 ->  | O10: =SUM(O5:O9) -> 0 | P10: =P6 -> 0 | Q10: =R10/P10 ->  | R10: =SUM(R5:R9) -> 0
B11: Impôts et versements assimilés | D11: =Charges_compta_analytique!K34 -> 0 | F11: =D11 -> 0
B12: Participation des salariés | D12: =Charges_compta_analytique!K42 -> 0 | E12: =D12 -> 0 | H12: 3) Coût de production
B13: Dividendes versés | D13: =Charges_compta_analytique!K43 -> 0 | E13: =D13/2 -> 0 | F13: =D13/2 -> 0 | J13: =Donnees_de_jeu!C6 -> Scooter G1 | M13: =Donnees_de_jeu!C7 -> Scooter G2 | P13: =Donnees_de_jeu!C8 -> Scooter G3
B14: Total après répartition primaire | E14: =SUM(E4:E13) -> 318700 | F14: =SUM(F4:F13) -> 30927 | J14: Q | K14: prix / coût | L14: Montant | M14: Q | N14: prix / coût | O14: Montant | P14: Q | Q14: prix / coût | R14: Montant
B15: Nature de l'unité d'œuvre | E15: Quantité produite | F15: € Coût de production des PF vendues | H15: Achat de matières | J15: =J10 -> 2319 | K15: =K10 -> 42.55627426 | L15: 98688 | M15: 0 | O15: 0 | P15: 0 | R15: 0
B16: Nombre d'unité d'œuvre | E16: =SUM(Données_techniques!D15:D17) -> 2319 | F16: =SUM(L47,O47,R47) -> 440908 | H16: Charges directes
B17: Coût de l'unité d'œuvre | E17: =E14/E16 -> 137.4299267 | F17: =F14/F16 -> 0.07014388489 | H17: =Charges_compta_analytique!B8 -> Frais fixes de production | L17: =Charges_compta_analytique!J8 -> 30000 | O17: =Charges_compta_analytique!J9 -> 0 | R17: =Charges_compta_analytique!J10 -> 0
H18: =Charges_compta_analytique!B17 -> Budget qualité | L18: =Charges_compta_analytique!J17 -> 30000 | O18: =Charges_compta_analytique!J18 -> 0 | R18: =Charges_compta_analytique!J19 -> 0
H19: Charges indirectes
H20: Production | J20: =Données_techniques!D15 -> 2319 | K20: =$E$17 -> 137.4299267 | L20: =J20*K20 -> 318700 | M20: =Données_techniques!D16 -> 0 | N20: =$E$17 -> 137.4299267 | O20: =M20*N20 -> 0 | P20: =Données_techniques!D17 -> 0 | Q20: =$E$17 -> 137.4299267 | R20: =P20*Q20 -> 0
H21: Total | J21: =J20 -> 2319 | K21: =L21/J21 -> 205.8594222 | L21: =SUM(L15:L20) -> 477388 | M21: =M20 -> 0 | N21: =O21/M21 ->  | O21: =SUM(O15:O20) -> 0 | P21: =P20 -> 0 | Q21: =R21/P21 ->  | R21: =SUM(R15:R20) -> 0 | S21: =SUM(L21,O21,R21) -> 477388
G23: 4) Valorisation des stocks | H23: =CONCATENATE("Stock de ",Donnees_de_jeu!C6) -> Stock de Scooter G1
H24: Libellé | I24: Quantité | J24: Valeur unitaire | K24: Montant | L24: Libellé | M24: Quantité | N24: Valeur unitaire | O24: Montant
H25: Stock initial | I25: =Données_techniques!C15 -> 190 | J25: =Données_techniques!G15 -> 120 | K25: =I25*J25 -> 22800
H26: Entrées (= Production) | I26: =J21 -> 2319 | J26: =K21 -> 205.8594222 | K26: 477388 | L26: Sorties (= Ventes) | M26: =Données_techniques!E15 -> 2015 | N26: =O26/M26 -> 218.8129032 | O26: =K28-O27 -> 440908
L27: Stock final | M27: =Données_techniques!F15 -> 494 | N27: =O27/M27 -> 120 | O27: =Données_comptables!C11 -> 59280
H28: Totaux | I28: =I25+I26 -> 2509 | J28: =K28/I28 -> 199.357513 | K28: =K25+K26 -> 500188 | L28: Totaux | M28: =M26+M27 -> 2509 | N28: =O28/M28 -> 199.357513 | O28: =O26+O27 -> 500188
H30: =CONCATENATE("Stock de ",Donnees_de_jeu!C7) -> Stock de Scooter G2
H31: Libellé | I31: Quantité | J31: Valeur unitaire | K31: Montant | L31: Libellé | M31: Quantité | N31: Valeur unitaire | O31: Montant
H32: Stock initial | I32: =Données_techniques!C16 -> 0 | J32: =Données_techniques!G16 -> 140 | K32: =I32*J32 -> 0
H33: Entrées (= Production) | I33: =M21 -> 0 | J33: =N21 ->  | K33: 0 | L33: Sorties (= Ventes) | M33: =Données_techniques!E16 -> 0 | N33: =O33/M33 ->  | O33: =K35-O34 -> 0
L34: Stock final | M34: =Données_techniques!F16 -> 0 | N34: =O34/M34 ->  | O34: =Données_comptables!C12 -> 0
H35: Totaux | I35: =I32+I33 -> 0 | J35: =K35/I35 ->  | K35: =K32+K33 -> 0 | L35: Totaux | M35: =M33+M34 -> 0 | N35: =O35/M35 ->  | O35: =O33+O34 -> 0
H37: =CONCATENATE("Stock de ",Donnees_de_jeu!C8) -> Stock de Scooter G3
H38: Libellé | I38: Quantité | J38: Valeur unitaire | K38: Montant | L38: Libellé | M38: Quantité | N38: Valeur unitaire | O38: Montant
H39: Stock initial | I39: =Données_techniques!C17 -> 0 | J39: =Données_techniques!G17 -> 180 | K39: =I39*J39 -> 0
H40: Entrées (= Production) | I40: =P21 -> 0 | J40: =Q21 ->  | K40: 0 | L40: Sorties (= Ventes) | M40: =Données_techniques!E17 -> 0 | N40: =O40/M40 ->  | O40: =K42-O41 -> 0
L41: Stock final | M41: =Données_techniques!F17 -> 0 | N41: =O41/M41 ->  | O41: =Données_comptables!C13 -> 0
H42: Totaux | I42: =I39+I40 -> 0 | J42: =K42/I42 ->  | K42: =K39+K40 -> 0 | L42: Totaux | M42: =M40+M41 -> 0 | N42: =O42/M42 ->  | O42: =O40+O41 -> 0
H44: 5) Coût de distribution
J45: =J13 -> Scooter G1 | M45: =M13 -> Scooter G2 | P45: =P13 -> Scooter G3
J46: Q | K46: prix / coût | L46: Montant | M46: Q | N46: prix / coût | O46: Montant | P46: Q | Q46: prix / coût | R46: Montant
H47: Coût de production des produits finis vendus | J47: =M26 -> 2015 | K47: =N26 -> 218.8129032 | L47: 440908 | M47: =M33 -> 0 | N47: =N33 ->  | O47: 0 | P47: =M40 -> 0 | Q47: =N40 ->  | R47: 0
H48: Charges directes
H49: =Charges_compta_analytique!B11 -> Frais fixes d’administration et distribution | L49: =Charges_compta_analytique!J11 -> 60000 | O49: =Charges_compta_analytique!J12 -> 0 | R49: =Charges_compta_analytique!J13 -> 0
H50: =Charges_compta_analytique!B14 -> Budget communication | L50: =Charges_compta_analytique!J14 -> 40000 | O50: =Charges_compta_analytique!J15 -> 0 | R50: =Charges_compta_analytique!J16 -> 0
H51: Charges indirectes
H52: Total | J52: =J47 -> 2015 | K52: =L52/J52 -> 268.4406948 | L52: =SUM(L47:L51) -> 540908 | M52: =M47 -> 0 | N52: =O52/M52 ->  | O52: =SUM(O47:O51) -> 0 | P52: =P47 -> 0 | Q52: =R52/P52 ->  | R52: =SUM(R47:R51) -> 0
H54: 6) Coût de revient
J55: =J45 -> Scooter G1 | M55: =M45 -> Scooter G2 | P55: =P45 -> Scooter G3
J56: Q | K56: prix / coût | L56: Montant | M56: Q | N56: prix / coût | O56: Montant | P56: Q | Q56: prix / coût | R56: Montant
H57: Coût de distribution | J57: =J52 -> 2015 | K57: =K52 -> 268.4406948 | L57: 540908 | M57: 0 | O57: 0 | P57: 0 | R57: 0
H58: Charges directes
H59: Charges indirectes
H60: =F3 -> Administration | J60: =L47 -> 440908 | K60: =$F$17 -> 0.07014388489 | L60: =J60*K60 -> 30927 | M60: =O47 -> 0 | N60: =$F$17 -> 0.07014388489 | O60: =M60*N60 -> 0 | P60: =R47 -> 0 | Q60: =$F$17 -> 0.07014388489 | R60: =P60*Q60 -> 0
H61: Total | J61: =J57 -> 2015 | K61: =L61/J61 -> 268.4406948 | L61: =SUM(L57:L59) -> 540908 | M61: =M57 -> 0 | N61: =O61/M61 ->  | O61: =SUM(O57:O59) -> 0 | P61: =P57 -> 0 | Q61: =R61/P61 ->  | R61: =SUM(R57:R59) -> 0

Sheet Ecarts
B2: =CONCATENATE("Fiche de coûts constatés en ",Donnees_de_jeu!E6) -> Fiche de coûts constatés en 2023 | T2: =CONCATENATE("Fiche de coûts prévisionnels de ",Donnees_de_jeu!E6,", établie fin ",Donnees_de_jeu!E6-1,", adaptés à la production prévisionnelle") -> Fiche de coûts prévisionnels de 2023, établie fin 2022, adaptés à la production prévisionnelle | AL2: =CONCATENATE("Fiche de coûts prévisionnels de ",Donnees_de_jeu!E6,", établie fin ",Donnees_de_jeu!E6-1,", adaptés à la production réelle") -> Fiche de coûts prévisionnels de 2023, établie fin 2022, adaptés à la production réelle | BD2: Calcul de l'écart total sur les charges et sa décomposition (écart sur volume d'activité et écart global) | BP2: Décomposition de l'écart global sur charges directes (écart sur coût et écart sur quantité)
B3: 1) Tableau de répartition des charges indirectes | H3: 2) Coût d'approvisionnement | T3: 1) Tableau de répartition des charges indirectes | Z3: 2) Coût d'approvisionnement | AL3: 1) Tableau de répartition des charges indirectes | AR3: 2) Coût d'approvisionnement | BD3: Ecart total | BE3: = | BF3: Coût réel de la quantité réelle (CuPC_N+1 x QC_N+1) | BP3: Ecart global | BQ3: = | BR3: Coût réel de la consommation réelle (CouC_N+1 x CuC_N+1 x QC_N+1)
B4: Charges \ Centres d'analyse | D4: Montants en comptabilité analytique | E4: Production | F4: Administration | J4: =CONCATENATE("Matières pour le ",Donnees_de_jeu!C6) -> Matières pour le Scooter G1 | M4: =CONCATENATE("Matières pour le ",Donnees_de_jeu!C7) -> Matières pour le Scooter G2 | P4: =CONCATENATE("Matières pour le ",Donnees_de_jeu!C8) -> Matières pour le Scooter G3 | T4: Charges \ Centres d'analyse | V4: Montants en comptabilité analytique | W4: Production | X4: Administration | AB4: =J4 -> Matières pour le Scooter G1 | AE4: =M4 -> Matières pour le Scooter G2 | AH4: =P4 -> Matières pour le Scooter G3 | AL4: Charges \ Centres d'analyse | AN4: Montants en comptabilité analytique | AO4: Production | AP4: Administration | AT4: =AB4 -> Matières pour le Scooter G1 | AW4: =AE4 -> Matières pour le Scooter G2 | AZ4: =AH4 -> Matières pour le Scooter G3 | BE4: - | BF4: 'Coût préétabli de la production prévue (CuPP_N->N+1 x QP_N->N+1) | BQ4: - | BR4: 'Coût préétabli de la consommation prévue pour la production réelle (CouP_N->N+1 x CuP_N->N+1 x QC_N+1)
B5: Charges salariales | D5: =Charges_compta_analytique!K26 -> 188700 | E5: =D5 -> 188700 | J5: Q | K5: prix / coût | L5: Montant | M5: Q | N5: prix / coût | O5: Montant | P5: Q | Q5: prix / coût | R5: Montant | T5: Charges salariales | V5: =Charges_compta_analytique!AC26 -> 0 | W5: =V5 -> 0 | AB5: Q | AC5: prix / coût | AD5: Montant | AE5: Q | AF5: prix / coût | AG5: Montant | AH5: Q | AI5: prix / coût | AJ5: Montant | AL5: Charges salariales | AN5: =V5 -> 0 | AO5: =W5 -> 0 | AP5: =X5 -> 0 | AT5: Q | AU5: prix / coût | AV5: Montant | AW5: Q | AX5: prix / coût | AY5: Montant | AZ5: Q | BA5: prix / coût | BB5: Montant | BD5: Décomposition entre | BE5: Ecart global | BF5: = | BG5: Coût réel de la quantité réelle (CuPC_N+1 x QC_N+1) | BP5: Décomposition entre | BQ5: Ecart sur coût | BR5: = | BS5: Coût réel de la consommation réelle (CouC_N+1 x CuC_N+1 x QC_N+1)
B6: Amortissements | C6: =CONCATENATE("Machine(s) ", Donnees_de_jeu!$C$11, "(s)") -> Machine(s) Classique(s) | D6: =Charges_compta_analytique!K27 -> 60000 | E6: =D6 -> 60000 | H6: Charges directes | T6: Amortissements | U6: =CONCATENATE("Machine(s) ", Donnees_de_jeu!$C$11, "(s)") -> Machine(s) Classique(s) | V6: =Charges_compta_analytique!AC27 -> 0 | W6: =V6 -> 0 | Z6: Charges directes | AL6: Amortissements | AM6: =CONCATENATE("Machine(s) ", Donnees_de_jeu!$C$11, "(s)") -> Machine(s) Classique(s) | AN6: =V6 -> 0 | AO6: =W6 -> 0 | AP6: =X6 -> 0 | AR6: Charges directes | BF6: - | BG6: 'Coût préétabli de la production réelle (CuPP_N->N+1 x QC_N+1) | BR6: - | BS6: 'Coût préétabli de la consommation réelle (CouC_N+1 x CuP_N->N+1 x QC_N+1)
C7: =CONCATENATE("Machine(s) ",Donnees_de_jeu!$C$12,"(s)") -> Machine(s) Moderne(s) | D7: =Charges_compta_analytique!K28 -> 0 | E7: =D7 -> 0 | H7: Achat de matières | J7: =D26 -> 2319 | K7: =L7/J7 -> 40 | L7: =Charges_compta_analytique!J5 -> 92760 | M7: =D27 -> 0 | N7: =O7/M7 ->  | O7: =Charges_compta_analytique!J6 -> 0 | P7: =D28 -> 0 | Q7: =R7/P7 ->  | R7: =Charges_compta_analytique!J7 -> 0 | U7: =CONCATENATE("Machine(s) ",Donnees_de_jeu!$C$12,"(s)") -> Machine(s) Moderne(s) | V7: =Charges_compta_analytique!AC28 -> 0 | W7: =V7 -> 0 | Z7: =H7 -> Achat de matières | AB7: =V26 -> 0 | AC7: =K7 -> 40 | AD7: =AB7*AC7 -> 0 | AE7: =V27 -> 0 | AF7: 50 | AG7: =AE7*AF7 -> 0 | AH7: =V28 -> 0 | AI7: 80 | AJ7: =AH7*AI7 -> 0 | AM7: =CONCATENATE("Machine(s) ",Donnees_de_jeu!$C$12,"(s)") -> Machine(s) Moderne(s) | AN7: 0 | AO7: 0 | AP7: 0 | AR7: =Z7 -> Achat de matières | AT7: =AN26 -> 2319 | AU7: =AC7 -> 40 | AV7: =AT7*AU7 -> 92760 | AW7: =AN27 -> 0 | AX7: =AF7 -> 50 | AY7: =AW7*AX7 -> 0 | AZ7: =AN28 -> 0 | BA7: =AI7 -> 80 | BB7: =Charges_compta_analytique!AT7 -> 0 | BE7: + Ecart sur volume d'activité | BF7: = | BG7: Coût préétabli de la production réelle (CuPP_N->N+1 x QC_N+1) | BQ7: '+ Ecart sur quantité | BR7: = | BS7: Coût préétabli de la consommation réelle (CouC_N+1 x CuP_N->N+1 x QC_N+1)
B8: Etudes (motivation d'achat & prévision ventes) | D8: =Charges_compta_analytique!K29 -> 30000 | F8: =D8 -> 30000 | H8: =Charges_compta_analytique!B20 -> Coût de stockage | L8: =Charges_compta_analytique!J20 -> 5928 | O8: =Charges_compta_analytique!J21 -> 0 | R8: =Charges_compta_analytique!J22 -> 0 | T8: Etudes (motivation d'achat & prévision ventes) | V8: =Charges_compta_analytique!AC29 -> 0 | X8: =V8 -> 0 | Z8: =H8 -> Coût de stockage | AD8: =10%*W33 -> 19 | AG8: =0.1*W34 -> 0 | AJ8: =0.1*W35 -> 0 | AL8: Etudes (motivation d'achat & prévision ventes) | AN8: 0 | AO8: 0 | AP8: 0 | AR8: =Z8 -> Coût de stockage | AV8: =AD8 -> 19 | AY8: =AG8 -> 0 | BB8: =AJ8 -> 0 | BF8: - | BG8: 'Coût préétabli de la production prévue (CuPP_N->N+1 x QP_N->N+1) | BR8: - | BS8: Coût préétabli de la consommation prévue pour la production réelle (CouP_N->N+1 x CuP_N->N+1 x QC_N+1)
B9: Budget R & D | D9: =Charges_compta_analytique!K30 -> 70000 | E9: =D9 -> 70000 | H9: =Charges_compta_analytique!B23 -> Dépréciation des stocks | L9: =Charges_compta_analytique!J23 -> 0 | O9: =Charges_compta_analytique!J24 -> 0 | R9: =Charges_compta_analytique!J25 -> 0 | T9: Budget R & D | V9: =Charges_compta_analytique!AC30 -> 0 | W9: =V9 -> 0 | Z9: Dépréciation des stocks | AD9: 0 | AG9: 0 | AJ9: 0 | AL9: Budget R & D | AN9: 0 | AO9: 0 | AP9: 0 | AR9: Dépréciation des stocks | AV9: 0 | AY9: 0 | BB9: 0
B10: Intérêts sur découverts | D10: =Charges_compta_analytique!K32 -> 927 | F10: =D10 -> 927 | H10: Charges indirectes | T10: Intérêts sur découverts | V10: =Charges_compta_analytique!AC32 -> 0 | X10: =V10 -> 0 | Z10: Charges indirectes | AL10: Intérêts sur découverts | AN10: 0 | AO10: 0 | AP10: 0 | AR10: Charges indirectes | BD10: Ecart sur Coût d'approvisionnement | BP10: Cela n'est pas nécessaire car dans le jeu, l'ensemble des coût variables sont donnés et connus à l'avance et il en va de même pour les coûts fixes. Nos charges directes et dépendentes des quantités sont connues.
B11: Intérêts sur emprunts | D11: =Charges_compta_analytique!K33 -> 0 | F11: =D11 -> 0 | H11: Total | J11: =J7 -> 2319 | K11: =L11/J11 -> 42.55627426 | L11: =SUM(L6:L10) -> 98688 | M11: =M7 -> 0 | N11: =O11/M11 ->  | O11: =SUM(O6:O10) -> 0 | P11: =P7 -> 0 | Q11: =R11/P11 ->  | R11: =SUM(R6:R10) -> 0 | T11: Intérêts sur emprunts | V11: =Charges_compta_analytique!AC33 -> 0 | X11: =V11 -> 0 | Z11: Total | AB11: =AB7 -> 0 | AC11: =AD11/AB11 ->  | AD11: =SUM(AD6:AD10) -> 19 | AE11: =AE7 -> 0 | AF11: =AG11/AE11 ->  | AG11: =SUM(AG6:AG10) -> 0 | AH11: =AH7 -> 0 | AI11: =AJ11/AH11 ->  | AJ11: =SUM(AJ6:AJ10) -> 0 | AL11: Intérêts sur emprunts | AN11: 0 | AO11: 0 | AP11: 0 | AR11: Total | AT11: =AT7 -> 2319 | AU11: =AV11/AT11 -> 40.00819319 | AV11: =SUM(AV6:AV10) -> 92779 | AW11: =AW7 -> 0 | AX11: =AY11/AW11 ->  | AY11: =SUM(AY6:AY10) -> 0 | AZ11: =AZ7 -> 0 | BA11: =BB11/AZ11 ->  | BB11: =SUM(BB6:BB10) -> 0 | BF11: =AT4 -> Matières pour le Scooter G1 | BI11: =AW4 -> Matières pour le Scooter G2 | BL11: =AZ4 -> Matières pour le Scooter G3
B12: Impôts et versements assimilés | D12: =Charges_compta_analytique!K34 -> 0 | F12: =D12 -> 0 | T12: Impôts et versements assimilés | V12: =Charges_compta_analytique!AC34 -> 0 | X12: =V12 -> 0 | AL12: Impôts et versements assimilés | AN12: 0 | AO12: 0 | AP12: 0 | BF12: Ecart sur volume d'activité (a) | BG12: Ecart global (b) | BH12: Ecart total (a) + (b) | BI12: Ecart sur volume d'activité (a) | BJ12: Ecart global (b) | BK12: Ecart total (a) + (b) | BL12: Ecart sur volume d'activité (a) | BM12: Ecart global (b) | BN12: Ecart total (a) + (b)
B13: Participation des salariés | D13: =Charges_compta_analytique!K42 -> 0 | E13: =D13 -> 0 | H13: 3) Coût de production | T13: Participation des salariés | V13: =Charges_compta_analytique!AC42 -> 0 | W13: =V13 -> 0 | Z13: 3) Coût de production | AL13: Participation des salariés | AN13: 0 | AO13: 0 | AP13: 0 | AR13: 3) Coût de production | BD13: Charges directes
B14: Dividendes versés | D14: =Charges_compta_analytique!K43 -> 0 | E14: =D14/2 -> 0 | F14: =D14/2 -> 0 | J14: =Donnees_de_jeu!C6 -> Scooter G1 | M14: =Donnees_de_jeu!C7 -> Scooter G2 | P14: =Donnees_de_jeu!C8 -> Scooter G3 | T14: Dividendes versés | V14: =Charges_compta_analytique!AC43 -> 0 | W14: =V14/2 -> 0 | X14: =V14/2 -> 0 | AB14: =J14 -> Scooter G1 | AE14: =M14 -> Scooter G2 | AH14: =P14 -> Scooter G3 | AL14: Dividendes versés | AN14: 0 | AO14: 0 | AP14: 0 | AT14: =AB14 -> Scooter G1 | AW14: =AE14 -> Scooter G2 | AZ14: =AH14 -> Scooter G3 | BD14: =AR7 -> Achat de matières | BF14: =AV7-AD7 -> 92760 | BG14: =L7-AV7 -> 0 | BH14: =IF(BF14+BG14=L7-AD7,BF14+BG14,"Erreur") -> 92760 | BI14: =AY7-AG7 -> 0 | BJ14: =O7-AY7 -> 0 | BK14: =IF(BI14+BJ14=O7-AG7,BI14+BJ14,"Erreur") -> 0 | BL14: =BB7-AJ7 -> 0 | BM14: =R7-BB7 -> 0 | BN14: =IF(BL14+BM14=R7-AJ7,BL14+BM14,"Erreur") -> 0
B15: Total après répartition primaire | E15: =SUM(E5:E14) -> 318700 | F15: =SUM(F5:F14) -> 30927 | J15: Q | K15: prix / coût | L15: Montant | M15: Q | N15: prix / coût | O15: Montant | P15: Q | Q15: prix / coût | R15: Montant | T15: Total après répartition primaire | W15: =SUM(W5:W14) -> 0 | X15: =SUM(X5:X14) -> 0 | AB15: Q | AC15: prix / coût | AD15: Montant | AE15: Q | AF15: prix / coût | AG15: Montant | AH15: Q | AI15: prix / coût | AJ15: Montant | AL15: Total après répartition primaire | AO15: =SUM(AO5:AO14) -> 0 | AP15: =SUM(AP5:AP14) -> 0 | AT15: Q | AU15: prix / coût | AV15: Montant | AW15: Q | AX15: prix / coût | AY15: Montant | AZ15: Q | BA15: prix / coût | BB15: Montant | BD15: =AR8 -> Coût de stockage | BF15: =AV8-AD8 -> 0 | BG15: =L8-AV8 -> 5909 | BH15: =IF(BF15+BG15=L8-AD8,BF15+BG15,"Erreur") -> 5909 | BI15: =AY8-AG8 -> 0 | BJ15: =O8-AY8 -> 0 | BK15: =IF(BI15+BJ15=O8-AG8,BI15+BJ15,"Erreur") -> 0 | BL15: =BB8-AJ8 -> 0 | BM15: =R8-BB8 -> 0 | BN15: =IF(BL15+BM15=R8-AJ8,BL15+BM15,"Erreur") -> 0
B16: Nature de l'unité d'œuvre | E16: Quantité produite | F16: € Coût de production des PF vendues | H16: Achat de matières | J16: =J11 -> 2319 | K16: =K11 -> 42.55627426 | L16: 98688 | M16: 0 | O16: 0 | P16: 0 | R16: 0 | T16: Nature de l'unité d'œuvre | W16: Quantité produite | X16: € Coût de production des PF vendues | Z16: Achat de matières | AB16: =AB11 -> 0 | AC16: =AC11 ->  | AD16: =AD11 -> 19 | AE16: =AE11 -> 0 | AG16: 0 | AH16: 0 | AJ16: 0 | AL16: Nature de l'unité d'œuvre | AO16: Quantité produite | AP16: € Coût de production des PF vendues | AR16: Achat de matières | AT16: =AT11 -> 2319 | AU16: =AU11 -> 40.00819319 | AV16: 92779 | AW16: =AW11 -> 0 | AX16: =AX11 ->  | AY16: 0 | AZ16: 0 | BB16: 0 | BD16: =AR9 -> Dépréciation des stocks | BF16: =AV9-AD9 -> 0 | BG16: =L9-AV9 -> 0 | BH16: =IF(BF16+BG16=L9-AD9,BF16+BG16,"Erreur") -> 0 | BI16: =AY9-AG9 -> 0 | BJ16: =O9-AY9 -> 0 | BK16: 0 | BL16: =BB9-AJ9 -> 0 | BM16: =R9-BB9 -> 0 | BN16: 0
B17: Nombre d'unité d'œuvre | E17: =D29 -> 2319 | F17: =SUM(L48,O48,R48) -> 440908 | H17: Charges directes | T17: Nombre d'unité d'œuvre | W17: =V29 -> 0 | X17: =SUM(AD48,AG48,AJ48) -> 19 | Z17: Charges directes | AL17: Nombre d'unité d'œuvre | AO17: =AN29 -> 2319 | AP17: =SUM(AV48,AY48,BB48) -> 374999 | AR17: Charges directes | BD17: Charges indirectes
B18: Coût de l'unité d'œuvre | E18: =E15/E17 -> 137.4299267 | F18: =F15/F17 -> 0.07014388489 | H18: =Charges_compta_analytique!B8 -> Frais fixes de production | L18: =Charges_compta_analytique!J8 -> 30000 | O18: =Charges_compta_analytique!J9 -> 0 | R18: =Charges_compta_analytique!J10 -> 0 | T18: Coût de l'unité d'œuvre | W18: =W15/W17 ->  | X18: =X15/X17 -> 0 | Z18: =H18 -> Frais fixes de production | AD18: =IF(V26>0,30000,0) -> 0 | AG18: =IF(V27>0,70000,0) -> 0 | AJ18: =IF(V28>0,90000,0) -> 0 | AL18: Coût de l'unité d'œuvre | AO18: =AO15/AO17 -> 0 | AP18: =AP15/AP17 -> 0 | AR18: =Z18 -> Frais fixes de production | AV18: =AD18 -> 0 | AY18: =AG18 -> 0 | BB18: =AJ18 -> 0 | BD18: Total | BF18: =AV11-AD11 -> 92760 | BG18: =L11-AV11 -> 5909 | BH18: =IF(BF18+BG18=L11-AD11,BF18+BG18,"Erreur") -> 98669 | BI18: =AY11-AG11 -> 0 | BJ18: =O11-AY11 -> 0 | BK18: =IF(BI18+BJ18=O11-AG11,BI18+BJ18,"Erreur") -> 0 | BL18: =BB11-AJ11 -> 0 | BM18: =R11-BB11 -> 0 | BN18: =IF(BL18+BM18=R11-AJ11,BL18+BM18,"Erreur") -> 0
H19: =Charges_compta_analytique!B17 -> Budget qualité | L19: =Charges_compta_analytique!J17 -> 30000 | O19: =Charges_compta_analytique!J18 -> 0 | R19: =Charges_compta_analytique!J19 -> 0 | Z19: =H19 -> Budget qualité | AD19: =V40 -> 0 | AG19: =V41 -> 0 | AJ19: =V42 -> 0 | AR19: =Z19 -> Budget qualité | AV19: =AD19 -> 0 | AY19: =AG19 -> 0 | BB19: =AJ19 -> 0
H20: Charges indirectes | Z20: Charges indirectes | AR20: Charges indirectes | BD20: Ecart sur Coût de production
H21: Production | J21: =D26 -> 2319 | K21: =$E$18 -> 137.4299267 | L21: =J21*K21 -> 318700 | M21: =D27 -> 0 | N21: =$E$18 -> 137.4299267 | O21: =M21*N21 -> 0 | P21: =D28 -> 0 | Q21: =$E$18 -> 137.4299267 | R21: =P21*Q21 -> 0 | Z21: Production | AB21: =V26 -> 0 | AC21: =$E$18 -> 137.4299267 | AD21: =AB21*AC21 -> 0 | AE21: =V27 -> 0 | AF21: =$E$18 -> 137.4299267 | AG21: =AE21*AF21 -> 0 | AH21: =V28 -> 0 | AI21: =$E$18 -> 137.4299267 | AJ21: =AH21*AI21 -> 0 | AR21: Production | AT21: =AN26 -> 2319 | AU21: =$E$18 -> 137.4299267 | AV21: =AT21*AU21 -> 318700 | AW21: =AN27 -> 0 | AX21: =$E$18 -> 137.4299267 | AY21: =AW21*AX21 -> 0 | AZ21: =AN28 -> 0 | BA21: =$E$18 -> 137.4299267 | BB21: =AZ21*BA21 -> 0 | BF21: =AT14 -> Scooter G1 | BI21: =AW14 -> Scooter G2 | BL21: =AZ14 -> Scooter G3
H22: Total | J22: =J21 -> 2319 | K22: =L22/J22 -> 205.8594222 | L22: =SUM(L16:L21) -> 477388 | M22: =M21 -> 0 | N22: =O22/M22 ->  | O22: =SUM(O16:O21) -> 0 | P22: =P21 -> 0 | Q22: =R22/P22 ->  | R22: =SUM(R16:R21) -> 0 | Z22: Total | AB22: =AB21 -> 0 | AC22: =AD22/AB22 ->  | AD22: =SUM(AD16:AD21) -> 19 | AE22: =AE21 -> 0 | AF22: =AG22/AE22 ->  | AG22: =SUM(AG16:AG21) -> 0 | AH22: =AH21 -> 0 | AI22: =AJ22/AH22 ->  | AJ22: =SUM(AJ16:AJ21) -> 0 | AR22: Total | AT22: =AT21 -> 2319 | AU22: =AV22/AT22 -> 177.4381199 | AV22: =SUM(AV16:AV21) -> 411479 | AW22: =AW21 -> 0 | AX22: =AY22/AW22 ->  | AY22: =SUM(AY16:AY21) -> 0 | AZ22: =AZ21 -> 0 | BA22: =BB22/AZ22 ->  | BB22: =SUM(BB16:BB21) -> 0 | BF22: Ecart sur volume d'activité (a) | BG22: Ecart global (b) | BH22: Ecart total (a) + (b) | BI22: Ecart sur volume d'activité (a) | BJ22: Ecart global (b) | BK22: Ecart total (a) + (b) | BL22: Ecart sur volume d'activité (a) | BM22: Ecart global (b) | BN22: Ecart total (a) + (b)
BD23: Achat de matières | BF23: =BF18 -> 92760 | BG23: =BG18 -> 5909 | BH23: 98669 | BI23: =BI18 -> 0 | BJ23: 0 | BK23: 0 | BL23: 0 | BM23: 0 | BN23: 0
C24: Quantités constatées (rappel) | G24: 4) Valorisation des stocks | H24: =CONCATENATE("Stock de ",Donnees_de_jeu!C6) -> Stock de Scooter G1 | U24: Quantités prévisionnelles | Y24: 4) Valorisation des stocks | Z24: =H24 -> Stock de Scooter G1 | AM24: =C24 -> Quantités constatées (rappel) | AQ24: 4) Valorisation des stocks | AR24: =Z24 -> Stock de Scooter G1 | BD24: Charges directes
D25: Production | E25: Ventes | H25: Libellé | I25: Quantité | J25: Valeur unitaire | K25: Montant | L25: Libellé | M25: Quantité | N25: Valeur unitaire | O25: Montant | V25: Production | W25: Ventes | Z25: Libellé | AA25: Quantité | AB25: Valeur unitaire | AC25: Montant | AD25: Libellé | AE25: Quantité | AF25: Valeur unitaire | AG25: Montant | AN25: Production | AO25: Ventes | AR25: Libellé | AS25: Quantité | AT25: Valeur unitaire | AU25: Montant | AV25: Libellé | AW25: Quantité | AX25: Valeur unitaire | AY25: Montant | BD25: =AR18 -> Frais fixes de production | BF25: =AV18-AD18 -> 0 | BG25: =L18-AV18 -> 30000 | BH25: =IF(BF25+BG25=L18-AD18,BF25+BG25,"Erreur") -> 30000 | BI25: =AY18-AG18 -> 0 | BJ25: =O18-AY18 -> 0 | BK25: =IF(BI25+BJ25=O18-AG18,BI25+BJ25,"Erreur") -> 0 | BL25: =BB18-AJ18 -> 0 | BM25: =R18-BB18 -> 0 | BN25: =IF(BL25+BM25=R18-AJ18,BL25+BM25,"Erreur") -> 0
C26: =Donnees_de_jeu!$C6 -> Scooter G1 | D26: =Données_techniques!D15 -> 2319 | E26: =Données_commerciales!J3 -> 2015 | H26: Stock initial | I26: =Données_techniques!C15 -> 190 | J26: =Données_techniques!G15 -> 120 | K26: =I26*J26 -> 22800 | U26: =Donnees_de_jeu!$C6 -> Scooter G1 | Z26: Stock initial | AA26: =Données_techniques!U15 -> 0 | AB26: =Données_techniques!Y15 -> 0 | AC26: =AA26*AB26 -> 0 | AM26: =Donnees_de_jeu!$C6 -> Scooter G1 | AN26: =D26 -> 2319 | AO26: =E26 -> 2015 | AR26: Stock initial | AS26: =Données_techniques!AM15 -> 0 | AT26: =Données_techniques!AQ15 -> 0 | AU26: =AS26*AT26 -> 0 | BD26: =AR19 -> Budget qualité | BF26: =AV19-AD19 -> 0 | BG26: =L19-AV19 -> 30000 | BH26: =IF(BF26+BG26=L19-AD19,BF26+BG26,"Erreur") -> 30000 | BI26: =AY19-AG19 -> 0 | BJ26: =O19-AY19 -> 0 | BK26: =IF(BI26+BJ26=O19-AG19,BI26+BJ26,"Erreur") -> 0 | BL26: =BB19-AJ19 -> 0 | BM26: =R19-BB19 -> 0 | BN26: =IF(BL26+BM26=R19-AJ19,BL26+BM26,"Erreur") -> 0
C27: =Donnees_de_jeu!$C7 -> Scooter G2 | D27: =Données_techniques!D16 -> 0 | E27: =Données_commerciales!J4 -> 0 | H27: Entrées (= Production) | I27: =J22 -> 2319 | J27: =K22 -> 205.8594222 | K27: 477388 | L27: Sorties (= Ventes) | M27: =E26 -> 2015 | N27: =O27/M27 -> 218.8129032 | O27: =K29-O28 -> 440908 | U27: =Donnees_de_jeu!$C7 -> Scooter G2 | Z27: Entrées (= Production) | AA27: =AB22 -> 0 | AB27: =AC22 ->  | AC27: =AD22 -> 19 | AD27: Sorties (= Ventes) | AE27: =W26 -> 0 | AF27: =AG27/AE27 ->  | AG27: =AC29-AG28 -> 19 | AM27: =Donnees_de_jeu!$C7 -> Scooter G2 | AN27: =D27 -> 0 | AO27: =E27 -> 0 | AR27: Entrées (= Production) | AS27: =AT22 -> 2319 | AT27: =AU22 -> 177.4381199 | AU27: =AV22 -> 411479 | AV27: Sorties (= Ventes) | AW27: =AO26 -> 2015 | AX27: =AY27/AW27 -> 186.1037221 | AY27: =AU29-AY28 -> 374999 | BD27: Charges indirectes
C28: =Donnees_de_jeu!$C8 -> Scooter G3 | D28: =Données_techniques!D17 -> 0 | E28: =Données_commerciales!J5 -> 0 | L28: Stock final | M28: =Données_techniques!F15 -> 494 | N28: =O28/M28 -> 120 | O28: =Données_comptables!C11 -> 59280 | U28: =Donnees_de_jeu!$C8 -> Scooter G3 | AD28: Stock final | AE28: =AA29-AE27 -> 0 | AF28: =Données_techniques!G15 -> 120 | AG28: =AE28*AF28 -> 0 | AM28: =Donnees_de_jeu!$C8 -> Scooter G3 | AN28: 0 | AO28: 0 | AV28: Stock final | AW28: =AS29-AW27 -> 304 | AX28: =Données_techniques!G15 -> 120 | AY28: =AW28*AX28 -> 36480 | BD28: Production | BF28: =AV21-AD21 -> 318700 | BG28: =L21-AV21 -> 0 | BH28: =IF(BF28+BG28=L21-AD21,BF28+BG28,"Erreur") -> 318700 | BI28: =AY21-AG21 -> 0 | BJ28: =O21-AY21 -> 0 | BK28: =IF(BI28+BJ28=O21-AG21,BI28+BJ28,"Erreur") -> 0 | BL28: =BB21-AJ21 -> 0 | BM28: =R21-BB21 -> 0 | BN28: =IF(BL28+BM28=R21-AJ21,BL28+BM28,"Erreur") -> 0
C29: Total | D29: =SUM(D26:D28) -> 2319 | E29: =SUM(E26:E28) -> 2015 | H29: Totaux | I29: =I26+I27 -> 2509 | J29: =K29/I29 -> 199.357513 | K29: =K26+K27 -> 500188 | L29: Totaux | M29: =M27+M28 -> 2509 | N29: =O29/M29 -> 199.357513 | O29: =O27+O28 -> 500188 | U29: Total | V29: =SUM(V26:V28) -> 0 | W29: =SUM(W26:W28) -> 0 | Z29: Totaux | AA29: =AA26+AA27 -> 0 | AB29: =AC29/AA29 ->  | AC29: =AC26+AC27 -> 19 | AD29: Totaux | AE29: =AE27+AE28 -> 0 | AF29: =AG29/AE29 ->  | AG29: =AG27+AG28 -> 19 | AM29: Total | AN29: =SUM(AN26:AN28) -> 2319 | AO29: =SUM(AO26:AO28) -> 2015 | AR29: Totaux | AS29: =AS26+AS27 -> 2319 | AT29: =AU29/AS29 -> 177.4381199 | AU29: =AU26+AU27 -> 411479 | AV29: Totaux | AW29: =AW27+AW28 -> 2319 | AX29: =AY29/AW29 -> 177.4381199 | AY29: =AY27+AY28 -> 411479 | BD29: Total | BF29: =AV22-AD22 -> 411460 | BG29: =L22-AV22 -> 65909 | BH29: =IF(BF29+BG29=L22-AD22,BF29+BG29,"Erreur") -> 477369 | BI29: =AY22-AG22 -> 0 | BJ29: =O22-AY22 -> 0 | BK29: =IF(BI29+BJ29=O22-AG22,BI29+BJ29,"Erreur") -> 0 | BL29: =BB22-AJ22 -> 0 | BM29: =R22-BB22 -> 0 | BN29: =IF(BL29+BM29=R22-AJ22,BL29+BM29,"Erreur") -> 0
H31: =CONCATENATE("Stock de ",Donnees_de_jeu!C7) -> Stock de Scooter G2 | U31: Quantités prévisionnelles | Z31: =H31 -> Stock de Scooter G2 | AR31: =Z31 -> Stock de Scooter G2 | BD31: Ecart sur Coût de distribution
H32: Libellé | I32: Quantité | J32: Valeur unitaire | K32: Montant | L32: Libellé | M32: Quantité | N32: Valeur unitaire | O32: Montant | U32: Impact sur | V32: Stock initial | W32: Stock final | Z32: Libellé | AA32: Quantité | AB32: Valeur unitaire | AC32: Montant | AD32: Libellé | AE32: Quantité | AF32: Valeur unitaire | AG32: Montant | AR32: Libellé | AS32: Quantité | AT32: Valeur unitaire | AU32: Montant | AV32: Libellé | AW32: Quantité | AX32: Valeur unitaire | AY32: Montant | BF32: =BF21 -> Scooter G1 | BI32: =BI21 -> Scooter G2 | BL32: =BL21 -> Scooter G3
H33: Stock initial | I33: =Données_techniques!C16 -> 0 | J33: =Données_techniques!G16 -> 140 | K33: =I33*J33 -> 0 | U33: =Donnees_de_jeu!$C6 -> Scooter G1 | V33: =Données_techniques!C15 -> 190 | W33: =V33+V26-W26 -> 190 | Z33: Stock initial | AA33: =Données_techniques!U16 -> 0 | AB33: =Données_techniques!Y16 -> 0 | AC33: =AA33*AB33 -> 0 | AR33: Stock initial | AS33: =Données_techniques!AM16 -> 0 | AT33: =Données_techniques!AQ16 -> 0 | AU33: =AS33*AT33 -> 0 | BF33: Ecart sur volume d'activité (a) | BG33: Ecart global (b) | BH33: Ecart total (a) + (b) | BI33: Ecart sur volume d'activité (a) | BJ33: Ecart global (b) | BK33: Ecart total (a) + (b) | BL33: Ecart sur volume d'activité (a) | BM33: Ecart global (b) | BN33: Ecart total (a) + (b)
H34: Entrées (= Production) | I34: =M22 -> 0 | J34: =N22 ->  | K34: 0 | L34: Sorties (= Ventes) | M34: =E27 -> 0 | N34: =O34/M34 ->  | O34: =K36-O35 -> 0 | U34: =Donnees_de_jeu!$C7 -> Scooter G2 | V34: =Données_techniques!C16 -> 0 | W34: =V34+V27-W27 -> 0 | Z34: Entrées (= Production) | AA34: =AE22 -> 0 | AB34: =AF22 ->  | AC34: =AG22 -> 0 | AD34: Sorties (= Ventes) | AE34: =W27 -> 0 | AF34: =AG34/AE34 ->  | AG34: =AC36-AG35 -> 0 | AR34: Entrées (= Production) | AS34: =AW22 -> 0 | AT34: =AX22 ->  | AU34: =AY22 -> 0 | AV34: Sorties (= Ventes) | AW34: =AO27 -> 0 | AX34: =AY34/AW34 ->  | AY34: =AU36-AY35 -> 0 | BD34: Coût de production des produits finis vendus | BF34: =AV48-AD48 -> 374980 | BG34: =L48-AV48 -> 65909 | BH34: =IF(BF34+BG34=L48-AD48,BF34+BG34,"Erreur") -> 440889 | BI34: =AY48-AG48 -> 0 | BJ34: =O48-AY48 -> 0 | BK34: =IF(BI34+BJ34=O48-AG48,BI34+BJ34,"Erreur") -> 0 | BL34: =BB48-AJ48 -> 0 | BM34: =R48-BB48 -> 0 | BN34: =IF(BL34+BM34=R48-AJ48,BL34+BM34,"Erreur") -> 0
L35: Stock final | M35: =Données_techniques!F16 -> 0 | N35: =O35/M35 ->  | O35: =Données_comptables!C12 -> 0 | U35: =Donnees_de_jeu!$C8 -> Scooter G3 | W35: 0 | AD35: Stock final | AE35: =AA36-AE34 -> 0 | AF35: =Données_techniques!G16 -> 140 | AG35: =AE35*AF35 -> 0 | AV35: Stock final | AW35: =AS36-AW34 -> 0 | AX35: =Données_techniques!G16 -> 140 | AY35: =AW35*AX35 -> 0 | BD35: Charges directes
H36: Totaux | I36: =I33+I34 -> 0 | J36: =K36/I36 ->  | K36: =K33+K34 -> 0 | L36: Totaux | M36: =M34+M35 -> 0 | N36: =O36/M36 ->  | O36: =O34+O35 -> 0 | U36: Total | V36: =SUM(V33:V35) -> 190 | W36: =SUM(W33:W35) -> 190 | Z36: Totaux | AA36: =AA33+AA34 -> 0 | AB36: =AC36/AA36 ->  | AC36: =AC33+AC34 -> 0 | AD36: Totaux | AE36: =AE34+AE35 -> 0 | AF36: =AG36/AE36 ->  | AG36: =AG34+AG35 -> 0 | AR36: Totaux | AS36: =AS33+AS34 -> 0 | AT36: =AU36/AS36 ->  | AU36: =AU33+AU34 -> 0 | AV36: Totaux | AW36: =AW34+AW35 -> 0 | AX36: =AY36/AW36 ->  | AY36: =AY34+AY35 -> 0 | BD36: =AR50 -> Frais fixes d’administration et distribution | BF36: =AV50-AD50 -> 0 | BG36: =L50-AV50 -> 60000 | BH36: =IF(BF36+BG36=L50-AD50,BF36+BG36,"Erreur") -> 60000 | BI36: =AY50-AG50 -> 0 | BJ36: =O50-AY50 -> 0 | BK36: =IF(BI36+BJ36=O50-AG50,BI36+BJ36,"Erreur") -> 0 | BL36: =BB50-AJ50 -> 0 | BM36: =R50-BB50 -> 0 | BN36: =IF(BL36+BM36=R50-AJ50,BL36+BM36,"Erreur") -> 0
BD37: =AR51 -> Budget communication | BF37: =AV51-AD51 -> 0 | BG37: =L51-AV51 -> 40000 | BH37: =IF(BF37+BG37=L51-AD51,BF37+BG37,"Erreur") -> 40000 | BI37: 0 | BJ37: 0 | BK37: 0 | BL37: 0 | BM37: 0 | BN37: 0
H38: =CONCATENATE("Stock de ",Donnees_de_jeu!C8) -> Stock de Scooter G3 | U38: Quantités prévisionnelles | Z38: =H38 -> Stock de Scooter G3 | AR38: =Z38 -> Stock de Scooter G3 | BD38: Charges indirectes
H39: Libellé | I39: Quantité | J39: Valeur unitaire | K39: Montant | L39: Libellé | M39: Quantité | N39: Valeur unitaire | O39: Montant | V39: Budget qualité | W39: Budget communidation | Z39: Libellé | AA39: Quantité | AB39: Valeur unitaire | AC39: Montant | AD39: Libellé | AE39: Quantité | AF39: Valeur unitaire | AG39: Montant | AR39: Libellé | AS39: Quantité | AT39: Valeur unitaire | AU39: Montant | AV39: Libellé | AW39: Quantité | AX39: Valeur unitaire | AY39: Montant | BD39: Total | BF39: =AV53-AD53 -> 374980 | BG39: =L53-AV53 -> 165909 | BH39: =IF(BF39+BG39=L53-AD53,BF39+BG39,"Erreur") -> 540889 | BI39: =AY53-AG53 -> 0 | BJ39: =O53-AY53 -> 0 | BK39: =IF(BI39+BJ39=O53-AG53,BI39+BJ39,"Erreur") -> 0 | BL39: =BB53-AJ53 -> 0 | BM39: =R53-BB53 -> 0 | BN39: =IF(BL39+BM39=R53-AJ53,BL39+BM39,"Erreur") -> 0
H40: Stock initial | I40: =Données_techniques!C17 -> 0 | J40: =Données_techniques!G17 -> 180 | K40: =I40*J40 -> 0 | U40: =Donnees_de_jeu!$C6 -> Scooter G1 | V40: =Données_techniques!C22 -> 0 | W40: =V40+V33-W33 -> 0 | Z40: Stock initial | AA40: =Données_techniques!U17 -> 0 | AB40: =Données_techniques!Y17 -> 0 | AC40: =AA40*AB40 -> 0 | AR40: Stock initial | AS40: =Données_techniques!AM17 -> 0 | AT40: =Données_techniques!AQ17 -> 0 | AU40: =AS40*AT40 -> 0
H41: Entrées (= Production) | I41: =P22 -> 0 | J41: =Q22 ->  | K41: 0 | L41: Sorties (= Ventes) | M41: =E28 -> 0 | N41: =O41/M41 ->  | O41: =K43-O42 -> 0 | U41: =Donnees_de_jeu!$C7 -> Scooter G2 | V41: =Données_techniques!C23 -> 0 | W41: =V41+V34-W34 -> 0 | Z41: Entrées (= Production) | AA41: =AH22 -> 0 | AB41: =AI22 ->  | AC41: =AJ22 -> 0 | AD41: Sorties (= Ventes) | AE41: =W28 -> 0 | AF41: =AG41/AE41 ->  | AG41: =AC43-AG42 -> 0 | AR41: Entrées (= Production) | AS41: =AZ22 -> 0 | AT41: =BA22 ->  | AU41: =BB22 -> 0 | AV41: Sorties (= Ventes) | AW41: =AO28 -> 0 | AX41: =AY41/AW41 ->  | AY41: =AU43-AY42 -> 0 | BD41: Ecart sur Coût de revient
L42: Stock final | M42: =Données_techniques!F17 -> 0 | N42: =O42/M42 ->  | O42: =Données_comptables!C13 -> 0 | U42: =Donnees_de_jeu!$C8 -> Scooter G3 | W42: 0 | AD42: Stock final | AE42: =AA43-AE41 -> 0 | AF42: =Données_techniques!G17 -> 180 | AG42: =AE42*AF42 -> 0 | AV42: Stock final | AW42: =AS43-AW41 -> 0 | AX42: =Données_techniques!G17 -> 180 | AY42: =AW42*AX42 -> 0 | BF42: =BF32 -> Scooter G1 | BI42: =BI32 -> Scooter G2 | BL42: =BL32 -> Scooter G3
H43: Totaux | I43: =I40+I41 -> 0 | J43: =K43/I43 ->  | K43: =K40+K41 -> 0 | L43: Totaux | M43: =M41+M42 -> 0 | N43: =O43/M43 ->  | O43: =O41+O42 -> 0 | U43: Total | V43: =SUM(V40:V42) -> 0 | W43: =SUM(W40:W42) -> 0 | Z43: Totaux | AA43: =AA40+AA41 -> 0 | AB43: =AC43/AA43 ->  | AC43: =AC40+AC41 -> 0 | AD43: Totaux | AE43: =AE41+AE42 -> 0 | AF43: =AG43/AE43 ->  | AG43: =AG41+AG42 -> 0 | AR43: Totaux | AS43: =AS40+AS41 -> 0 | AT43: =AU43/AS43 ->  | AU43: =AU40+AU41 -> 0 | AV43: Totaux | AW43: =AW41+AW42 -> 0 | AX43: =AY43/AW43 ->  | AY43: =AY41+AY42 -> 0 | BF43: Ecart sur volume d'activité (a) | BG43: Ecart global (b) | BH43: Ecart total (a) + (b) | BI43: Ecart sur volume d'activité (a) | BJ43: Ecart global (b) | BK43: Ecart total (a) + (b) | BL43: Ecart sur volume d'activité (a) | BM43: Ecart global (b) | BN43: Ecart total (a) + (b)
BD44: Coût de distribution | BF44: =AV58-AD58 -> 374980 | BG44: =L58-AV58 -> 165909 | BH44: =IF(BF44+BG44=L58-AD58,BF44+BG44,"Erreur") -> 540889 | BI44: =AY58-AG58 -> 0 | BJ44: =O58-AY58 -> 0 | BK44: =IF(BI44+BJ44=O58-AG58,BI44+BJ44,"Erreur") -> 0 | BL44: =BB58-AJ58 -> 0 | BM44: =R58-BB58 -> 0 | BN44: =IF(BL44+BM44=R58-AJ58,BL44+BM44,"Erreur") -> 0
H45: 5) Coût de distribution | Z45: 5) Coût de distribution | AR45: 5) Coût de distribution | BD45: Charges directes
J46: =J14 -> Scooter G1 | M46: =M14 -> Scooter G2 | P46: =P14 -> Scooter G3 | AB46: =J46 -> Scooter G1 | AE46: =M46 -> Scooter G2 | AH46: =P46 -> Scooter G3 | AT46: =AB46 -> Scooter G1 | AW46: =AE46 -> Scooter G2 | AZ46: =AH46 -> Scooter G3 | BD46: Charges indirectes
J47: Q | K47: prix / coût | L47: Montant | M47: Q | N47: prix / coût | O47: Montant | P47: Q | Q47: prix / coût | R47: Montant | AB47: Q | AC47: prix / coût | AD47: Montant | AE47: Q | AF47: prix / coût | AG47: Montant | AH47: Q | AI47: prix / coût | AJ47: Montant | AT47: Q | AU47: prix / coût | AV47: Montant | AW47: Q | AX47: prix / coût | AY47: Montant | AZ47: Q | BA47: prix / coût | BB47: Montant | BD47: =AR61 -> Administration | BF47: =AV61-AD61 -> 26302.55396 | BG47: =L61-AV61 -> 4623.113309 | BH47: =IF(BF47+BG47=L61-AD61,BF47+BG47,"Erreur") -> 30925.66727 | BI47: =AY61-AG61 -> 0 | BJ47: =O61-AY61 -> 0 | BK47: =IF(BI47+BJ47=O61-AG61,BI47+BJ47,"Erreur") -> 0 | BL47: =BB61-AJ61 -> 0 | BM47: =R61-BB61 -> 0 | BN47: =IF(BL47+BM47=R61-AJ61,BL47+BM47,"Erreur") -> 0
H48: Coût de production des produits finis vendus | J48: =M27 -> 2015 | K48: =N27 -> 218.8129032 | L48: 440908 | M48: =M34 -> 0 | N48: =N34 ->  | O48: 0 | P48: =M41 -> 0 | Q48: =N41 ->  | R48: 0 | Z48: Coût de production des produits finis vendus | AB48: =AE27 -> 0 | AC48: =AF27 ->  | AD48: =AG27 -> 19 | AE48: =AE34 -> 0 | AF48: =AF34 ->  | AG48: 0 | AH48: =AE41 -> 0 | AI48: =AF41 ->  | AJ48: =AG41 -> 0 | AR48: Coût de production des produits finis vendus | AT48: =AW27 -> 2015 | AU48: =AX27 -> 186.1037221 | AV48: =AY27 -> 374999 | AW48: =AW34 -> 0 | AX48: =AX34 ->  | AY48: 0 | AZ48: =AW41 -> 0 | BA48: =AX41 ->  | BB48: =AY41 -> 0 | BD48: Total | BF48: =AV62-AD62 -> 401282.554 | BG48: =L62-AV62 -> 170532.1133 | BH48: =IF(BF48+BG48=L62-AD62,BF48+BG48,"Erreur") -> 571814.6673 | BI48: 0 | BJ48: 0 | BK48: 0 | BL48: 0 | BM48: 0 | BN48: 0
H49: Charges directes | Z49: Charges directes | AR49: Charges directes
H50: =Charges_compta_analytique!B11 -> Frais fixes d’administration et distribution | L50: =Charges_compta_analytique!J11 -> 60000 | O50: =Charges_compta_analytique!J12 -> 0 | R50: =Charges_compta_analytique!J13 -> 0 | Z50: =H50 -> Frais fixes d’administration et distribution | AD50: =IF(W26>0,30000,0) -> 0 | AG50: =IF(W27>0,30000,0) -> 0 | AJ50: =IF(W28>0,30000,0) -> 0 | AR50: =Z50 -> Frais fixes d’administration et distribution | AV50: =AD50 -> 0 | AY50: =AG50 -> 0 | BB50: =AJ50 -> 0
H51: =Charges_compta_analytique!B14 -> Budget communication | L51: =Charges_compta_analytique!J14 -> 40000 | O51: =Charges_compta_analytique!J15 -> 0 | R51: =Charges_compta_analytique!J16 -> 0 | Z51: =H51 -> Budget communication | AD51: =W40 -> 0 | AG51: =W41 -> 0 | AJ51: =W42 -> 0 | AR51: =Z51 -> Budget communication | AV51: =AD51 -> 0 | AY51: =AG51 -> 0 | BB51: =AJ51 -> 0
H52: Charges indirectes | Z52: Charges indirectes | AR52: Charges indirectes
H53: Total | J53: =J48 -> 2015 | K53: =L53/J53 -> 268.4406948 | L53: =SUM(L48:L52) -> 540908 | M53: =M48 -> 0 | N53: =O53/M53 ->  | O53: =SUM(O48:O52) -> 0 | P53: =P48 -> 0 | Q53: =R53/P53 ->  | R53: =SUM(R48:R52) -> 0 | Z53: Total | AB53: =AB48 -> 0 | AC53: =AD53/AB53 ->  | AD53: =SUM(AD48:AD52) -> 19 | AE53: =AE48 -> 0 | AF53: =AG53/AE53 ->  | AG53: =SUM(AG48:AG52) -> 0 | AH53: =AH48 -> 0 | AI53: =AJ53/AH53 ->  | AJ53: =SUM(AJ48:AJ52) -> 0 | AR53: Total | AT53: =AT48 -> 2015 | AU53: =AV53/AT53 -> 186.1037221 | AV53: =SUM(AV48:AV52) -> 374999 | AW53: =AW48 -> 0 | AX53: =AY53/AW53 ->  | AY53: =SUM(AY48:AY52) -> 0 | AZ53: =AZ48 -> 0 | BA53: =BB53/AZ53 ->  | BB53: =SUM(BB48:BB52) -> 0
H55: 6) Coût de revient | Z55: 6) Coût de revient | AR55: 6) Coût de revient
J56: =J46 -> Scooter G1 | M56: =M46 -> Scooter G2 | P56: =P46 -> Scooter G3 | AB56: =AB46 -> Scooter G1 | AE56: =AE46 -> Scooter G2 | AH56: =AH46 -> Scooter G3 | AT56: =AT46 -> Scooter G1 | AW56: =AW46 -> Scooter G2 | AZ56: =AZ46 -> Scooter G3
J57: Q | K57: prix / coût | L57: Montant | M57: Q | N57: prix / coût | O57: Montant | P57: Q | Q57: prix / coût | R57: Montant | AB57: Q | AC57: prix / coût | AD57: Montant | AE57: Q | AF57: prix / coût | AG57: Montant | AH57: Q | AI57: prix / coût | AJ57: Montant | AT57: Q | AU57: prix / coût | AV57: Montant | AW57: Q | AX57: prix / coût | AY57: Montant | AZ57: Q | BA57: prix / coût | BB57: Montant
H58: Coût de distribution | J58: =J53 -> 2015 | K58: =K53 -> 268.4406948 | L58: 540908 | M58: =M53 -> 0 | O58: 0 | P58: =P53 -> 0 | R58: 0 | Z58: Coût de distribution | AB58: =AB53 -> 0 | AC58: =AC53 ->  | AD58: 19 | AE58: 0 | AG58: 0 | AH58: 0 | AJ58: 0 | AR58: Coût de distribution | AT58: =AT53 -> 2015 | AU58: =AU53 -> 186.1037221 | AV58: 374999 | AW58: 0 | AY58: 0 | AZ58: 0 | BB58: 0
H59: Charges directes | Z59: Charges directes | AR59: Charges directes
H60: Charges indirectes | Z60: Charges indirectes | AR60: Charges indirectes
H61: =F4 -> Administration | J61: =L48 -> 440908 | K61: =$F$18 -> 0.07014388489 | L61: =J61*K61 -> 30927 | M61: =O48 -> 0 | N61: =$F$18 -> 0.07014388489 | O61: =M61*N61 -> 0 | P61: =R48 -> 0 | Q61: =$F$18 -> 0.07014388489 | R61: =P61*Q61 -> 0 | Z61: =X4 -> Administration | AB61: =AD48 -> 19 | AC61: =$F$18 -> 0.07014388489 | AD61: =AB61*AC61 -> 1.332733813 | AE61: =AG48 -> 0 | AF61: =$F$18 -> 0.07014388489 | AG61: =AE61*AF61 -> 0 | AH61: =AJ48 -> 0 | AI61: =$F$18 -> 0.07014388489 | AJ61: =AH61*AI61 -> 0 | AR61: =AP4 -> Administration | AT61: =AV48 -> 374999 | AU61: =$F$18 -> 0.07014388489 | AV61: =AT61*AU61 -> 26303.88669 | AW61: =AY48 -> 0 | AX61: =$F$18 -> 0.07014388489 | AY61: =AW61*AX61 -> 0 | AZ61: =BB48 -> 0 | BA61: =$F$18 -> 0.07014388489 | BB61: =AZ61*BA61 -> 0
H62: Total | J62: =J58 -> 2015 | K62: =L62/J62 -> 283.7890819 | L62: =SUM(L58:L61) -> 571835 | M62: =M58 -> 0 | N62: =O62/M62 ->  | O62: =SUM(O58:O61) -> 0 | P62: =P58 -> 0 | Q62: =R62/P62 ->  | R62: =SUM(R58:R61) -> 0 | Z62: Total | AB62: =AB58 -> 0 | AC62: =AD62/AB62 ->  | AD62: =SUM(AD58:AD61) -> 20.33273381 | AE62: =AE58 -> 0 | AF62: =AG62/AE62 ->  | AG62: =SUM(AG58:AG60) -> 0 | AH62: =AH58 -> 0 | AI62: =AJ62/AH62 ->  | AJ62: =SUM(AJ58:AJ60) -> 0 | AR62: Total | AT62: =AT58 -> 2015 | AU62: =AV62/AT62 -> 199.1577601 | AV62: =SUM(AV58:AV61) -> 401302.8867 | AW62: =AW58 -> 0 | AX62: =AY62/AW62 ->  | AY62: =SUM(AY58:AY60) -> 0 | AZ62: =AZ58 -> 0 | BA62: =BB62/AZ62 ->  | BB62: =SUM(BB58:BB60) -> 0

Sheet SIG
B2: =CONCATENATE("Tableau des Soldes Intermédiaires de gestion (SIG) de l'année ",Donnees_de_jeu!$E$6) -> Tableau des Soldes Intermédiaires de gestion (SIG) de l'année 2023 | H2: =CONCATENATE("Rappel de l'année ",Donnees_de_jeu!E6-1) -> Rappel de l'année 2022
B3: Ventes de marchandises | C3: 0 | D3: Coût d'achat des marchandises vendues | E3: 0 | F3: Marge commerciale | G3: =C3-E3 -> 0
B4: Production vendue | C4: =Données_comptables!H26 -> 705250 | D4: OU destockage de production | E4: =IF(Données_comptables!H29<0,-Données_comptables!H29,0) -> 0 | F4: Production de l'exercice | G4: =C7-E7 -> 741730
B5: Production stockée | C5: =IF(Données_comptables!H29>0,Données_comptables!H29,0) -> 36480
B6: Production immobilisée | C6: 0
B7: Total | C7: =SUM(C4:C6) -> 741730 | D7: Total | E7: =E4 -> 0
B8: Production de l'exercice | C8: =G4 -> 741730 | D8: Consommations de l'exercice en provenance de tiers | E8: =SUM(Données_comptables!D26,Données_comptables!D29,Données_comptables!D32,Données_comptables!D35,Données_comptables!D38,Données_comptables!D41) -> 258688 | F8: Valeur ajoutée | G8: =C10-E10 -> 483042
B9: Marge commerciale | C9: =G3 -> 0
B10: Total | C10: =SUM(C8:C9) -> 741730 | D10: Total | E10: =E8 -> 258688
B11: Valeur ajoutée | C11: =G8 -> 483042 | D11: Impôts taxes et versements assimilés | E11: =Données_comptables!D56 -> 0 | F11: Excédent Brut d'Exploitation (EBE) ou Insuffisance Brute d'Exploitation (IBE) | G11: =C13-E13 -> 294342
B12: Subventions d'exploitation | C12: 0 | D12: Charges de personnel | E12: =Données_comptables!D47+Données_comptables!D64 -> 188700
B13: Total | C13: =SUM(C11:C12) -> 483042 | D13: Total | E13: =SUM(E11:E12) -> 188700
B14: EBE | C14: =IF(G11>0,G11,0) -> 294342 | D14: IBE | E14: =IF(G11<=0,-G11,0) -> 0 | F14: Résultat d'exploitation | G14: =C17-E17 -> 134342
B15: Reprise sur charges et transfert de charges | C15: =0 -> 0 | D15: Dotation aux amortissements et provisions | E15: =Données_comptables!D44+Données_comptables!D48 -> 60000
B16: Autres produits d'exploitation | C16: 0 | D16: Autres charges d'exploitation | E16: =Données_comptables!D50+Données_comptables!D51 -> 100000
B17: Total | C17: =SUM(C14:C16) -> 294342 | D17: Total | E17: =SUM(E14:E16) -> 160000
B18: Résultat d'exploitation (bénéfice) | C18: =IF(G14>0,G14,0) -> 134342 | D18: Résultat d'exploitation (perte) | E18: =IF(G14<=0,-G14,0) -> 0 | F18: Résultat Courant Avant Impôts (RCAI) | G18: =C21-E21 -> 133415
B19: Quotes-parts de résultat sur opérations faites en commun | C19: 0 | D19: Quotes-parts de résultat sur opérations faites en commun | E19: 0
B20: Produits financiers | C20: =Données_comptables!H53 -> 0 | D20: Charges financières | E20: =Données_comptables!D53+Données_comptables!D54+Données_comptables!D55 -> 927
B21: Total | C21: =SUM(C18:C20) -> 134342 | D21: Total | E21: =SUM(E18:E20) -> 927
B22: Produits exceptionnels | C22: =Données_comptables!I56 -> 30000 | D22: Charges exceptionnelles | E22: =Données_comptables!E56 -> 0 | F22: Résultat exceptionnel | G22: =C22-E22 -> 30000
B23: RCAI (bénéfice) | C23: =IF(G18>0,G18,0) -> 133415 | D23: RCAI (perte) | E23: =IF(G18<=0,-G18,0) -> 0 | F23: Résultat net comptable | G23: =C27-E27 -> 114313
B24: Résultat exceptionnel (bénéfice) | C24: =IF(G22>0,G22,0) -> 30000 | D24: Résultat exceptionnel (perte) | E24: =IF(G22<=0,-G22,0) -> 0
D25: Participation des salariés | E25: retraitée en charge de personnel
D26: Impôts sur les bénéfices | E26: =Données_comptables!D63 -> 49102
B27: Total | C27: =SUM(C23:C26) -> 163415 | D27: Total | E27: =SUM(E23:E26) -> 49102 | F27: Vérification du résultat net | G27: =IF(Données_comptables!G8=SIG!G23,"OK","Modification(s) à effectuer") -> OK
B28: Produits de cessions d'éléments d'actif cédés | C28: =Données_comptables!H57 -> 0 | D28: Valeur nette comptable des éléments d'actif cédés | E28: =Données_comptables!D57 -> 0 | F28: Pous ou moins value sur cession d'actifs | G28: =C28-E28 -> 0

Sheet (C)AF
B2: =CONCATENATE("Capacité d'autofinancement (CAF) à partir du résultat de l'année ",Donnees_de_jeu!E6) -> Capacité d'autofinancement (CAF) à partir du résultat de l'année 2023 | C2: - | D2: +
B3: Résultat net de l'exercice (bénéfice ou perte) | C3: =IF(Données_comptables!G8<0,-Données_comptables!G8,0) -> 0 | D3: =IF(Données_comptables!G8>0,Données_comptables!G8,0) -> 114313
B4: Charges calculées
B5: Dotations aux amortissements, dépcréciations et provisions :
B6: - charges d'exploitation | D6: =Données_comptables!D44+Données_comptables!D48 -> 60000
B7: - charges financières
B8: - charges exceptionnelles
B9: Valeurs nettes comptables des éléments d'actif cédés | D9: =Données_comptables!D57 -> 0
B10: Produits calculés :
B11: Reprises sur amortissement, dépréciations et provisions :
B12: - d'exploitation
B13: - financières
B14: - exceptionnelles
B15: Quote-part des subventions d'investissement virée au résultat de l'exercice
B16: Produits de cessions d'éléments d'actif cédés | C16: =Données_comptables!H57 -> 0
B17: Total | C17: =SUM(C3:C16) -> 0 | D17: =SUM(D3:D16) -> 174313
B18: CAF | C18: =IF(D17-C17 < 0,D17-C17,0) -> 0 | D18: =IF(D17-C17 > 0,D17-C17,0) -> 174313
B20: =CONCATENATE("Capacité d'autofinancement (CAF) à partir de l'EBE (ou IBE) de l'année ",Donnees_de_jeu!E24) -> Capacité d'autofinancement (CAF) à partir de l'EBE (ou IBE) de l'année | C20: - | D20: + | F20: =CONCATENATE("Autofinancement (AF) de l'année ",Donnees_de_jeu!E6) -> Autofinancement (AF) de l'année 2023 | G20: - | H20: +
B21: EBE ou IBE | C21: =IF(SIG!G11<0,-SIG!G11,0) -> 0 | D21: =IF(SIG!G11>0,SIG!G11,0) -> 294342 | F21: CAF | G21: =IF(E38="Ok",C18,"La CAF a mal été calculée en amont") -> 0 | H21: =IF(E38="Ok",D18,"La CAF a mal été calculée en amont") -> 174313
B22: Produits encaissables / encaissés | F22: =CONCATENATE("Dividendes versés en ",Donnees_de_jeu!E6+1) -> Dividendes versés en 2024 | G22: =Données_financières!C23 -> 0
B23: Transferts de charges d'exploitation | F23: AF | G23: =SUM(H21:H22)-SUM(G21:G22) -> 174313
B24: Autres produits d'exploitation encaissables / encaissés
B25: Quote-part sur opérations en commun
B26: Transferts de charges financières
B27: Produits financiers encaissables / encaissés | D27: =Données_comptables!H53 -> 0
B28: Transfert de charges exceptionnelles
B29: Produits exceptionnels encaissables / encaissés | D29: =Données_comptables!H59+Données_comptables!H62 -> 30000
B30: Charges décaissables / décaissées
B31: Autres charges d'exploitation décaissables / décaissées | C31: =Données_comptables!D50+Données_comptables!D51 -> 100000
B32: Quote-part sur opérations en commun
B33: Charges financières décaissables / décaissées | C33: =Données_comptables!D53+Données_comptables!D54 -> 927
B34: Charges exceptionnelles décaissables / décaissées | C34: =Données_comptables!D59 -> 0
B35: Participation des salariés | C35: =Données_comptables!D64 -> 0
B36: Impôts sur les bénéfices | C36: =Données_comptables!D63 -> 49102
B37: Total | C37: =SUM(C21:C36) -> 150029 | D37: =SUM(D21:D36) -> 324342
B38: CAF | C38: =IF(D37-C37 < 0,D37-C37,0) -> 0 | D38: =IF(D37-C37 > 0,D37-C37,0) -> 174313 | E38: =IF(C18=C38,"Ok","Modification(s) à effectuer") -> Ok

Sheet Bilan_fonc
B2: =CONCATENATE("Bilan fonctionnel au 31/12/",Donnees_de_jeu!E6) -> Bilan fonctionnel au 31/12/2023
B3: Cycles | C3: Actif | D3: Brut | E3: Passif | F3: Brut | G3: Cycles
B4: Cycle d'investissement (long) | C4: Emplois stables | D4: =SUM(D5:D7) -> 300000 | E4: Ressources stables | F4: =SUM(F5:F7) -> 518220 | G4: Cycle de financement (long) | I4: FRNG | J4: =F4-D4 -> 218220
C5: Immobilisations corporelles | D5: =Données_comptables!C6+Données_comptables!C7 -> 300000 | E5: Capitaux propres | F5: =Données_comptables!G5 -> 398220
C6: Immobilisations incorporelles | E6: Amortissements et provisions | F6: =Données_comptables!D19 -> 120000
C7: Immobilisations financières | E7: Emprunts et dettes financières | F7: =Données_comptables!G11+Données_comptables!G14 -> 0
B8: Cycle d'exploitation (court) | C8: Actif circulant d'exploitation | D8: =SUM(D9:D13) -> 59280 | E8: Passif circulant d'exploitation | F8: =SUM(F9:F13) -> 49102 | G8: Cycle d'exploitation (court) | I8: BFR | J8: =J9+J10 -> 10178
C9: Stocks | D9: =Données_comptables!C11+Données_comptables!C12+Données_comptables!C13 -> 59280 | E9: Dettes fournisseur | F9: =Données_comptables!G13 -> 0 | I9: BFR_E | J9: =D8-F8 -> 10178
C10: Créances clients et rattachés | D10: =Données_comptables!C14 -> 0 | E10: Dettes fiscales et sociales | F10: =Données_comptables!G12 -> 49102 | I10: BFR_HE | J10: =D14-F14 -> 0
C11: Avances et acomptes versés | E11: Avances et acomptes reçus
C12: Autres créances (d'exploitation) | E12: Autres dettes (d'exploitation)
C13: CCA (d'exploitation) | E13: PCA (d'exploitation)
B14: Cycle hors exploitation (court) | C14: Actif circulant hors exploitation | D14: =SUM(D15:D18) -> 0 | E14: Passif circulant hors exploitation | F14: =SUM(F15:F18) -> 0 | G14: Cycle hors exploitation (court)
C15: Autres créances (hors exploitation) | E15: Autres dettes (hors exploitation)
C16: CCA (hors exploitation) | E16: PCA (hors exploitation)
C17: VMP | E17: Dettes fournisseurs d'immobilisations
C18: Crédit d'IS | E18: Dette d'IS
B19: Trésorerie (immédiat) | C19: Trésorerie active | D19: =D20 -> 208969 | E19: Trésorerie passive | F19: =F20 -> 927 | G19: Trésorerie (immédiat) | I19: Trésorerie Nette | J19: =D19-F19 -> 208042
C20: Disponibilités | D20: =Données_comptables!C18 -> 208969 | E20: Concours bancaires courants | F20: =Données_comptables!G15 -> 927 | I20: Vérif TN | J20: =J4-J8 -> 208042
C21: Total | D21: =SUM(D4,D8,D14,D19) -> 568249 | E21: Total | F21: =SUM(F4,F8,F14,F19) -> 568249

Sheet Proj_inv
B2: Cash-Flows d’exploitation lié à l’investissement
C3: =CONCATENATE("Début ",Donnees_de_jeu!E$6) -> Début 2023 | D3: =CONCATENATE("Fin ",Donnees_de_jeu!E$6) -> Fin 2023 | E3: =Donnees_de_jeu!$E$6+1 -> 2024 | F3: =E3+1 -> 2025 | G3: 2026 | H3: 2027 | K3: Type de machine | L3: =Donnees_de_jeu!C11 -> Classique | M3: =Donnees_de_jeu!C12 -> Moderne | P3: Taux d'IS
B4: Chiffre d’affaires supplémentaire | D4: =$N$13 -> 875000 | E4: =$N$13 -> 875000 | F4: =$N$13 -> 875000 | G4: =$N$13 -> 875000 | H4: =$N$13 -> 875000 | K4: Nombre de machines | L4: 1 | M4: 0 | P4: =1/3 -> 0.3333333333
B5: Charges d’exploitation HT (hors amortissement) supplémentaires | D5: =$M$32 -> 495000 | E5: =$M$32 -> 495000 | F5: =$M$32 -> 495000 | G5: =$M$32 -> 495000 | H5: =$M$32 -> 495000 | K5: Capacités de production annuelle supplémentaire | L5: =3000*Proj_inv!L4 -> 3000 | M5: =10000*M4 -> 0 | N5: =SUM(L5:M5) -> 3000
B6: Dotation aux amortissements | D6: =$N$7 -> 60000 | E6: =$N$7 -> 60000 | F6: =$N$7 -> 60000 | G6: =$N$7 -> 60000 | H6: =$N$7 -> 60000 | K6: Coût d'acquisition | L6: =300000*L4 -> 300000 | M6: =900000*M4 -> 0 | N6: =SUM(L6:M6) -> 300000 | P6: Financement de l'investissement
B7: Résultat d’exploitation avant IS | D7: =D4-D5-D6 -> 320000 | E7: =E4-E5-E6 -> 320000 | F7: 320000 | G7: 320000 | H7: 320000 | K7: Amortissement annuel | L7: =L6/5 -> 60000 | M7: =M6/5 -> 0 | N7: =SUM(L7:M7) -> 60000 | P7: Disponibilités | Q7: 300000
B8: Montant de l’IS | D8: =D7*$P$4 -> 106666.6667 | E8: =E7*$P$4 -> 106666.6667 | F8: 106666.6667 | G8: 106666.6667 | H8: 106666.6667 | P8: Emprunt
B9: Résultat net d’exploitation | D9: =D7-D8 -> 213333.3333 | E9: =E7-E8 -> 213333.3333 | F9: 213333.3333 | G9: 213333.3333 | H9: 213333.3333 | K9: Production supplémentaire envisagée / année | L9: =IF(SUM(L10:L12)>N5,"Impossible",SUM(L10:L12)) -> 2500 | M9: Prix de vente prévisionnels | N9: CA prévisionnel | P9: Total | Q9: =Q7+Q8 -> 300000
B10: Dotation aux amortissements | D10: =D6 -> 60000 | E10: =E6 -> 60000 | F10: 60000 | G10: 60000 | H10: 60000 | K10: =Donnees_de_jeu!C6 -> Scooter G1 | L10: 2500 | M10: 350 | N10: =L10*M10 -> 875000
B11: Cash-Flow d’exploitation | D11: =D9+D10 -> 273333.3333 | E11: =E9+E10 -> 273333.3333 | F11: 273333.3333 | G11: 273333.3333 | H11: 273333.3333 | K11: =Donnees_de_jeu!C7 -> Scooter G2 | N11: =L11*M11 -> 0 | P11: Rémunération attendue | R11: Taux équivalent
K12: =Donnees_de_jeu!C8 -> Scooter G3 | N12: 0 | P12: Actionnaires (50% du résultat net) | Q12: =50%*Données_comptables!D65 -> 57156.5 | R12: =Q12/Données_comptables!G5 -> 0.1435299583
B13: Cash-Flows nets lié à l’investissement | N13: =SUM(N10:N12) -> 875000 | P13: Taux d'intérêts emprunts (net d'IS) | Q13: =10%*(1-P4) -> 0.06666666667
C14: =CONCATENATE("Début ",Donnees_de_jeu!E$6) -> Début 2023 | D14: =CONCATENATE("Fin ",Donnees_de_jeu!E$6) -> Fin 2023 | E14: =Donnees_de_jeu!$E$6+1 -> 2024 | F14: =E14+1 -> 2025 | G14: 2026 | H14: 2027
B15: Investissement | C15: =N6 -> 300000 | K15: Charges prévisionnelles prévisionnelles / années | P15: Taux d'actualisation
B16: Variation du BFR | K16: Achats de matières | L16: =Donnees_de_jeu!$C$6 -> Scooter G1 | M16: =L10*40 -> 100000 | P16: =((Données_comptables!G5*Proj_inv!R12)+(Proj_inv!Q13*(Proj_inv!Q8+Données_comptables!G11)))/(Données_comptables!G5+Données_comptables!G11+Proj_inv!Q8) -> 0.1435299583
B17: Total Emplois | C17: =C15+C16 -> 300000 | D17: =D15+D16 -> 0 | E17: 0 | F17: 0 | G17: 0 | H17: 0 | L17: =Donnees_de_jeu!$C$7 -> Scooter G2 | M17: =L11*50 -> 0
B18: Cash-flow d’exploitation | C18: =C11 -> 0 | D18: =D11 -> 273333.3333 | E18: 273333.3333 | F18: 273333.3333 | G18: 273333.3333 | H18: 273333.3333 | L18: =Donnees_de_jeu!$C$8 -> Scooter G3 | M18: =L12*80 -> 0
B19: Valeur résiduelle | K19: Frais fixes de production | L19: =Donnees_de_jeu!$C$6 -> Scooter G1 | M19: 0
B20: Récupération du BFR | H20: =SUM(C16:H16) -> 0 | L20: =Donnees_de_jeu!$C$7 -> Scooter G2 | M20: 0
B21: Total Ressources | C21: =SUM(C18:C20) -> 0 | D21: =SUM(D18:D20) -> 273333.3333 | E21: 273333.3333 | F21: 273333.3333 | G21: 273333.3333 | H21: 273333.3333 | L21: =Donnees_de_jeu!$C$8 -> Scooter G3 | M21: 0
B22: Cash-Flow nets | C22: =C21-C17 -> -300000 | D22: =D21-D17 -> 273333.3333 | E22: 273333.3333 | F22: 273333.3333 | G22: 273333.3333 | H22: 273333.3333 | K22: Frais fixes d’administration et distribution | L22: =Donnees_de_jeu!$C$6 -> Scooter G1 | M22: 0
B23: Cash-Flows nets cumulés | C23: =C22 -> -300000 | D23: =C23+D22 -> -26666.66667 | E23: =D23+E22 -> 246666.6667 | F23: 520000 | G23: 793333.3333 | H23: 1066666.667 | L23: =Donnees_de_jeu!$C$7 -> Scooter G2 | M23: 0
L24: =Donnees_de_jeu!$C$8 -> Scooter G3 | M24: 0
B25: Années | C25: 0 | D25: 1 | E25: 2 | F25: 3 | G25: 4 | H25: 5 | K25: Budget communication | L25: =Donnees_de_jeu!$C$6 -> Scooter G1 | M25: 50000
B26: Cash-Flow net actualisés | C26: =C22/(1+$P$16)^C25 -> -300000 | D26: =D22/(1+$P$16)^D25 -> 239025.9489 | E26: 209024.6496 | F26: 182788.9581 | G26: 159846.2347 | H26: 139783.1631 | L26: =Donnees_de_jeu!$C$7 -> Scooter G2 | M26: 0
L27: =Donnees_de_jeu!$C$8 -> Scooter G3 | M27: 0
B28: VAN | C28: =SUM(C26:H26) -> 630468.9543 | K28: Budget qualité | L28: =Donnees_de_jeu!$C$6 -> Scooter G1 | M28: 45000
B29: TRI | C29: =IRR(C22:H22) -> 0.871417776 | L29: =Donnees_de_jeu!$C$7 -> Scooter G2 | M29: 0
B30: Délai de récupération du capital | C30: =IF(D23>0,D14,IF(E23>0,E14,IF(F23>0,F14,IF(G23>0,G14,IF(H23>0,H14))))) -> 2024 | L30: =Donnees_de_jeu!$C$8 -> Scooter G3 | M30: 0
B31: Indice de profitabilité | C31: =C28/C15 -> 2.101563181 | K31: Charges salariales | M31: 300000
K32: Total | M32: =SUM(M16:M31) -> 495000

Sheet Ratios_analyse
B2: Ratios de performance
B3: Année en cours | D3: =Donnees_de_jeu!E6 -> 2023 | F3: =Donnees_de_jeu!B3 -> 2023 | G3: =Donnees_de_jeu!C3 -> 2024 | H3: =Donnees_de_jeu!D3 -> 2025 | I3: =Donnees_de_jeu!E3 -> 2026 | J3: =Donnees_de_jeu!F3 -> 2027 | K3: =Donnees_de_jeu!G3 -> 2028 | L3: =Donnees_de_jeu!H3 -> 2029 | M3: =Donnees_de_jeu!I3 -> 2030
B4: L'analyse de l'évolution de l'activité
B5: Taux de croissance du chiffre d'affaires | C5: =CONCATENATE("CA_",D3,"-CA_",D3-1) -> CA_2023-CA_2022 | D5: =Données_comptables!H26-SUM(Données_commerciales!K3:K5) -> 705250 | E5: =D5/D6 -> 
C6: =CONCATENATE("CA_",D3-1) -> CA_2022 | D6: =SUM(Données_commerciales!K3:K5) -> 0
B7: Taux de croissance de la valeur ajoutée (VA) | C7: =CONCATENATE("VA_",D3,"-VA_",D3-1) -> VA_2023-VA_2022 | D7: =SIG!G8-SIG!H8 -> 483042 | E7: =D7/D8 -> 
C8: =CONCATENATE("VA_",D3-1) -> VA_2022 | D8: =SIG!H8 -> 0
B9: Taux de croissance de l'Excedent Brut d'Exploitation (EBE) | C9: =CONCATENATE("EBE_",D3,"-EBE_",D3-1) -> EBE_2023-EBE_2022 | D9: =SIG!G11-SIG!H11 -> 294342 | E9: =D9/D10 -> 
C10: =CONCATENATE("EBE_",D3-1) -> EBE_2022 | D10: =SIG!H11 -> 0
B12: L'analyse de la répartition de la valeur ajoutée
B13: Part de l'impôt dans la VA | C13: Impôts | D13: =SIG!E11 -> 0 | E13: =D13/D14 -> 0
C14: VA | D14: =SIG!$G$8 -> 483042
B15: Part du facteur travail dans la VA | C15: Charges de personnel | D15: =SIG!E12 -> 188700 | E15: =D15/D16 -> 0.3906492603
C16: VA | D16: =SIG!$G$8 -> 483042
B17: Part des intérêts dans la VA | C17: Charges d'intérêts | D17: =SIG!E20 -> 927 | E17: =D17/D18 -> 0.001919087781
C18: VA | D18: =SIG!$G$8 -> 483042
B19: Part de l'autofinancement | C19: Autofinancement | D19: ='(C)AF'!G23 -> 174313 | E19: =D19/D20 -> 0.3608651008
C20: VA | D20: =SIG!$G$8 -> 483042
B22: Analyse du rendement du personnel
B23: Productivité du personnel | C23: VA | D23: =SIG!$G$8 -> 483042 | E23: =D23/D24 -> 5682.847059
C24: Nombre de salariés ETP | D24: =Données_RH!G3 -> 85
B26: Analyse de la profitabilité
B27: Taux de marge commerciale | C27: Marge commerciale | D27: =SIG!G3 -> 0 | E27: =D27/D28 -> 0
C28: Chiffre d'affaires | D28: =Coûts_partiels!$G$6 -> 705250
B29: Taux d'intégration | C29: Valeur ajoutée | D29: =SIG!$G$8 -> 483042 | E29: =D29/D30 -> 0.6849230769
C30: Chiffre d'affaires | D30: =Coûts_partiels!$G$6 -> 705250
B31: Taux de marge brute d'exploitation | C31: EBE | D31: =SIG!G11 -> 294342 | E31: =D31/D32 -> 0.4173583836
C32: Chiffre d'affaires | D32: =Coûts_partiels!$G$6 -> 705250
B33: Taux de marge nette d'exploitation | C33: Résultat d'exploitation | D33: =SIG!G14 -> 134342 | E33: =D33/D34 -> 0.1904884793
C34: Chiffre d'affaires | D34: =Coûts_partiels!$G$6 -> 705250
B35: Taux de profitabilité financière | C35: RCAI | D35: =SIG!G18 -> 133415 | E35: =D35/D36 -> 0.1891740518
C36: Chiffre d'affaires | D36: =Coûts_partiels!$G$6 -> 705250
B37: Taux de profitabilité | C37: Résultat net comptable | D37: =SIG!G23 -> 114313 | E37: =D37/D38 -> 0.1620886211
C38: Chiffre d'affaires | D38: =Coûts_partiels!$G$6 -> 705250
B39: Ratios d'étude de la CAF
B40: Capacité d'autofinancement
B41: Taux de capacité d'autofinancement | C41: CAF | D41: =IF('(C)AF'!E38="Ok",'(C)AF'!D18-'(C)AF'!C18,"La CAF a mal été calculée") -> 174313 | E41: =D41/D42 -> 0.2471648352
C42: Chiffre d'affaires | D42: =Coûts_partiels!$G$6 -> 705250
B43: Capacité de remboursement
B44: Capacité de remboursement | C44: Dettes financières + CBC | D44: =Bilan_fonc!F7+Bilan_fonc!F20 -> 927 | E44: =D44/D45 -> 0.005318019884
C45: CAF | D45: =IF('(C)AF'!E38="Ok",'(C)AF'!D18-'(C)AF'!C18,"La CAF a mal été calculée") -> 174313
B46: Ratios d'étude du bilan fonctionnel
B47: Ratios de structure
B48: Ratio d'intensité capitalistique | C48: Actifs immobilisés (brut) | D48: =Bilan_fonc!D4 -> 300000 | E48: =D48/D49 -> 0.5279375767
C49: Total actif (brut) | D49: =Bilan_fonc!D21 -> 568249
B50: Ratio d'indépendance financière | C50: Emprunts et dettes financières | D50: =Bilan_fonc!F7 -> 0 | E50: =D50/D51 -> 0
C51: Capitaux propres | D51: =Bilan_fonc!F5 -> 398220
B53: Ratios d'équilibre financier
B54: Ratio de financement des emplois stables | C54: Ressources stables | D54: =Bilan_fonc!F4 -> 518220 | E54: =D54/D55 -> 1.7274
C55: Emplois stables | D55: =Bilan_fonc!D4 -> 300000
B56: Ratio de couverture des capitaux investis | C56: Ressources stables | D56: =Bilan_fonc!F4 -> 518220 | E56: =D56/D57 -> 1.670718104
C57: Emplois stables + BFR_E | D57: =Bilan_fonc!D4+Bilan_fonc!J9 -> 310178
B59: Ratio de rotation des stocks
B60: Délai de rotation des stocks de produits finis | C60: Stock moyen de PF (HT) * 360j | D60: =(((Données_techniques!C15*Données_techniques!G15+Données_techniques!C16*Données_techniques!G16+Données_techniques!C17*Données_techniques!G17+SUM(Données_comptables!C11:C13)/2)*360)) -> 18878400 | E60: =CONCATENATE(ROUND(D60/D61,0)," j") -> 40 j
C61: Coût de production des PFs vendus (HT) | D61: =Coûts_complets!S21 -> 477388
B62: Ratios d'étude de la rentabilité
B63: Rentabilité
B64: Rentabilité financière | C64: Résultat net comptable | D64: =SIG!G23 -> 114313 | E64: =D64/D65 -> 0.2870599166
C65: Capitaux propres | D65: =Données_comptables!G5 -> 398220
B66: Rentabilité économique | C66: Résultat d'exploitation (net d'IS) | D66: =SIG!G14*(1-Proj_inv!P4) -> 89561.33333 | E66: =D66/D67 -> 0.2887417332
C67: Capitaux investis | D67: =Bilan_fonc!D4+Bilan_fonc!J9 -> 310178
B68: Effet de levier | C68: Rentabilité financière | D68: =E64 -> 0.2870599166 | E68: =D68-D69 -> -0.001681816612
C69: - Rentabilité Economique | D69: =E66 -> 0.2887417332
